Workbook

Sheet CUA1
A1: Cuadro No. 1
A2: Ejecución del Presupuesto General de la Nación
A3: Acumulada a Enero 2025
A4: Miles de millones de pesos corrientes
B5: Concepto | C5: Apropiación Vigente | D5: Compromiso | E5: Obligación | F5: Pago | G5: Apropiación sin comprometer | H5: Porcentaje de ejecución
C6: Vigente | H6: Comp./Apro. | I6: Oblig./Apro. | J6: Pago/Apro. | K6: Oblig./Comp. | L6: Pago/Oblig.
C7: (1) | D7: (2) | E7: (3) | F7: (4) | G7: (5)=(1-2) | H7: (6)=(2/1) | I7: (7)=(3/1) | J7: (8)=(4/1) | K7: (9)=(3/2) | L7: (10)=(4/3)
A8: I. | B8: FUNCIONAMIENTO | C8: 327937.7113 | D8: 47312.7812 | E8: 15514.46065 | F8: 15135.66346 | G8: 280624.9301 | H8: 14.42736824 | I8: 4.730916913 | J8: 4.615408029 | K8: 32.79126751 | L8: 97.558425
B9: Gastos de Personal | C9: 59940.85462 | D9: 4733.048288 | E9: 3237.702821 | F9: 3216.512533 | G9: 55207.80634 | H9: 7.89619754 | I9: 5.401495927 | J9: 5.366143932 | K9: 68.40629176 | L9: 99.34551473
B10: Adquisición de Bienes y Servicios | C10: 14528.49822 | D10: 6655.619056 | E10: 318.2088435 | F10: 283.9772587 | G10: 7872.879168 | H10: 45.8107848 | I10: 2.190239064 | J10: 1.954622249 | K10: 4.781055539 | L10: 89.24241563
B11: Transferencias | C11: 249038.2121 | D11: 35448.05436 | E11: 11900.13938 | F11: 11589.01306 | G11: 213590.1577 | H11: 14.23398203 | I11: 4.778439132 | J11: 4.653507977 | K11: 33.57064187 | L11: 97.38552377
B12: Gastos de Comercialización y Producción | C12: 2052.959832 | D12: 449.6620523 | E12: 36.27302076 | F12: 24.12893013 | G12: 1603.29778 | H12: 21.9031101 | I12: 1.766864611 | J12: 1.175324025 | K12: 8.066729351 | L12: 66.52032179
B13: Adquisición de Activos Financieros | C13: 759.1561267 | D13: 0 | E13: 0 | F13: 0 | G13: 759.1561267 | H13: 0 | I13: 0 | J13: 0 | K13: 0 | L13: 0
B14: Disminución de Pasivos | C14: 338.8929778 | D14: 11.87307603 | E14: 11.06028924 | F14: 11.05975439 | G14: 327.0199017 | H14: 3.503488361 | I14: 3.263652529 | J14: 3.263494707 | K14: 93.15437052 | L14: 99.99516425
B15: Gastos por Tributos, Multas, Sanciones e Intereses de Mora | C15: 1279.137387 | D15: 14.52436056 | E15: 11.07629235 | F15: 10.97191422 | G15: 1264.613026 | H15: 1.135480888 | I15: 0.865918897 | J15: 0.8577588563 | K15: 76.26010322 | L15: 99.05764376
A16: II. | B16: SERVICIO DE LA DEUDA | C16: 112605.1864 | D16: 414.5662873 | E16: 381.1525917 | F16: 349.7530166 | G16: 112190.6201 | H16: 0.3681591413 | I16: 0.3384858228 | J16: 0.3106011613 | K16: 91.94008374 | L16: 91.76194107
B17: Servicio de la Deuda Pública Externa | C17: 41029.422 | D17: 34.33538656 | E17: 13.74588159 | F17: 0.0418846 | G17: 40995.08661 | H17: 0.08368479225 | I17: 0.03350249874 | J17: 0.0001020843043 | K17: 40.03415416 | L17: 0.3047065387
B18: Principal | C18: 21772.59 | D18: 0 | E18: 0 | F18: 0 | G18: 21772.59 | H18: 0 | I18: 0 | J18: 0 | K18: 0 | L18: 0
B19: Intereses | C19: 19104.45816 | D19: 0.725556988 | E19: 0.725556988 | F19: 0 | G19: 19103.7326 | H19: 0.003797841227 | I19: 0.003797841227 | J19: 0 | K19: 100 | L19: 0
B20: Comisiones y Otros Gastos | C20: 152.3738446 | D20: 33.60982957 | E20: 13.0203246 | F20: 0.0418846 | G20: 118.764015 | H20: 22.05747953 | I20: 8.544986598 | J20: 0.02748805093 | K20: 38.73963291 | L20: 0.3216862965
B21: Servicio de la Deuda Pública Interna | C21: 71575.76439 | D21: 380.2309007 | E21: 367.4067101 | F21: 349.711132 | G21: 71195.53349 | H21: 0.5312285576 | I21: 0.5133116122 | J21: 0.4885887492 | K21: 96.62726239 | L21: 95.18365407
B22: Principal | C22: 28993.66678 | D22: 367.4067101 | E22: 367.4067101 | F22: 349.711132 | G22: 28626.26007 | H22: 1.267196429 | I22: 1.267196429 | J22: 1.206163866 | K22: 100 | L22: 95.18365407
B23: Intereses | C23: 40380.19015 | D23: 0 | E23: 0 | F23: 0 | G23: 40380.19015 | H23: 0 | I23: 0 | J23: 0 | K23: 0 | L23: 0
B24: Comisiones y Otros Gastos | C24: 294.8098498 | D24: 12.82419061 | E24: 0 | F24: 0 | G24: 281.9856592 | H24: 4.34998716 | I24: 0 | J24: 0 | K24: 0 | L24: 0
B25: Fondo de contingencias | C25: 1907.097618 | D25: 0 | E25: 0 | F25: 0 | G25: 1907.097618 | H25: 0 | I25: 0 | J25: 0 | K25: 0 | L25: 0
A26: III. | B26: INVERSIÓN | C26: 82464.2348 | D26: 17597.70077 | E26: 383.465021 | F26: 316.6683643 | G26: 64866.53403 | H26: 21.33979757 | I26: 0.465007675 | J26: 0.3840069154 | K26: 2.179063197 | L26: 82.58076931
A27: IV. | B27: TOTAL (I + II + III) | C27: 523007.1325 | D27: 65325.04826 | E27: 16279.07826 | F27: 15802.08484 | G27: 457682.0842 | H27: 12.49027866 | I27: 3.112592018 | J27: 3.021389931 | K27: 24.9201167 | L27: 97.06989907
A28: V. | B28: TOTAL SIN DEUDA (I + III) | C28: 410401.9461 | D28: 64910.48197 | E28: 15897.92567 | F28: 15452.33182 | G28: 345491.4641 | H28: 15.81631924 | I28: 3.873745196 | J28: 3.765170211 | K28: 24.49207768 | L28: 97.1971573
A29: Fuente: Dirección General del Presupuesto Público Nacional- Subdirección de Análisis y Consolidación Presupuestal
C32: =+C27-'CUA2'!C27-'CUA3'!C25 -> 0 | D32: =+D27-'CUA2'!D27-'CUA3'!D25 -> -1.000444172e-11 | E32: =+E27-'CUA2'!E27-'CUA3'!E25 -> -2.955857781e-12 | F32: =+F27-'CUA2'!F27-'CUA3'!F25 -> 9.094947018e-13 | G32: =+G27-'CUA2'!G27-'CUA3'!G25 -> -8.367351256e-11

Sheet CUA2
A1: Cuadro No. 2
A2: Ejecución del presupuesto recursos Nación
A3: =+'CUA1'!A3:L3 -> Acumulada a Enero 2025
A4: Miles de millones de pesos corrientes
B5: Concepto | C5: Apropiación Vigente | D5: Compromiso | E5: Obligación | F5: Pago | G5: Apropiación sin comprometer | H5: Porcentaje de ejecución
C6: Vigente | H6: Comp./Apro. | I6: Oblig./Apro. | J6: Pago/Apro. | K6: Oblig./Comp. | L6: Pago/Oblig.
C7: (1) | D7: (2) | E7: (3) | F7: (4) | G7: (5)=(1-2) | H7: (6)=(2/1) | I7: (7)=(3/1) | J7: (8)=(4/1) | K7: (9)=(3/2) | L7: (10)=(4/3)
A8: I. | B8: FUNCIONAMIENTO | C8: 314806.1045 | D8: 45368.91916 | E8: 15101.01274 | F8: 14835.57269 | G8: 269437.1853 | H8: 14.41170248 | I8: 4.796925004 | J8: 4.712606419 | K8: 33.28492946 | L8: 98.24223675
B9: Gastos de Personal | C9: 56342.41502 | D9: 4453.570736 | E9: 3057.711848 | F9: 3039.398251 | G9: 51888.84429 | H9: 7.904472561 | I9: 5.427015947 | J9: 5.394511843 | K9: 68.65753414 | L9: 99.40106858
B10: Adquisición de Bienes y Servicios | C10: 13224.77594 | D10: 6113.166131 | E10: 283.4344825 | F10: 251.5779583 | G10: 7111.609811 | H10: 46.22510172 | I10: 2.1432082 | J10: 1.902323029 | K10: 4.636459674 | L10: 88.76053335
B11: Transferencias | C11: 243018.7458 | D11: 34749.58225 | E11: 11738.27788 | F11: 11523.06769 | G11: 208269.1636 | H11: 14.29913653 | I11: 4.830194411 | J11: 4.74163738 | K11: 33.779623 | L11: 98.1665949
B12: Gastos de Comercialización y Producción | C12: 113.326023 | D12: 27.62752512 | E12: 0.407931362 | F12: 0.399919886 | G12: 85.69849788 | H12: 24.37880055 | I12: 0.3599626557 | J12: 0.3528932503 | K12: 1.476539647 | L12: 98.03607255
B13: Adquisición de Activos Financieros | C13: 630.895 | D13: 0 | E13: 0 | F13: 0 | G13: 630.895 | H13: 0 | I13: 0 | J13: 0 | K13: 0 | L13: 0
B14: Disminución de Pasivos | C14: 322.1919778 | D14: 11.80373055 | E14: 11.01451491 | F14: 11.01451491 | G14: 310.3882472 | H14: 3.663570594 | I14: 3.41861861 | J14: 3.41861861 | K14: 93.31384567 | L14: 100
B15: Gastos por Tributos, Multas, Sanciones e Intereses de Mora | C15: 1153.75467 | D15: 13.16878718 | E15: 10.16608459 | F15: 10.1143504 | G15: 1140.585883 | H15: 1.141385385 | I15: 0.8811305255 | J15: 0.8766465406 | K15: 77.19833608 | L15: 99.49111002
A16: II. | B16: SERVICIO DE LA DEUDA | C16: 112605.1864 | D16: 414.5662873 | E16: 381.1525917 | F16: 349.7530166 | G16: 112190.6201 | H16: 0.3681591413 | I16: 0.3384858228 | J16: 0.3106011613 | K16: 91.94008374 | L16: 91.76194107
B17: Servicio de la Deuda Pública Externa | C17: 41029.422 | D17: 34.33538656 | E17: 13.74588159 | F17: 0.0418846 | G17: 40995.08661 | H17: 0.08368479225 | I17: 0.03350249874 | J17: 0.0001020843043 | K17: 40.03415416 | L17: 0.3047065387
B18: Principal | C18: 21772.59 | D18: 0 | E18: 0 | F18: 0 | G18: 21772.59 | H18: 0 | I18: 0 | J18: 0 | K18: 0 | L18: 0
B19: Intereses | C19: 19104.45816 | D19: 0.725556988 | E19: 0.725556988 | F19: 0 | G19: 19103.7326 | H19: 0.003797841227 | I19: 0.003797841227 | J19: 0 | K19: 100 | L19: 0
B20: Comisiones y Otros Gastos | C20: 152.3738446 | D20: 33.60982957 | E20: 13.0203246 | F20: 0.0418846 | G20: 118.764015 | H20: 22.05747953 | I20: 8.544986598 | J20: 0.02748805093 | K20: 38.73963291 | L20: 0.3216862965
B21: Servicio de la Deuda Pública Interna | C21: 71575.76439 | D21: 380.2309007 | E21: 367.4067101 | F21: 349.711132 | G21: 71195.53349 | H21: 0.5312285576 | I21: 0.5133116122 | J21: 0.4885887492 | K21: 96.62726239 | L21: 95.18365407
B22: Principal | C22: 28993.66678 | D22: 367.4067101 | E22: 367.4067101 | F22: 349.711132 | G22: 28626.26007 | H22: 1.267196429 | I22: 1.267196429 | J22: 1.206163866 | K22: 100 | L22: 95.18365407
B23: Intereses | C23: 40380.19015 | D23: 0 | E23: 0 | F23: 0 | G23: 40380.19015 | H23: 0 | I23: 0 | J23: 0 | K23: 0 | L23: 0
B24: Comisiones y Otros Gastos | C24: 294.8098498 | D24: 12.82419061 | E24: 0 | F24: 0 | G24: 281.9856592 | H24: 4.34998716 | I24: 0 | J24: 0 | K24: 0 | L24: 0
B25: Fondo de contingencias | C25: 1907.097618 | D25: 0 | E25: 0 | F25: 0 | G25: 1907.097618 | H25: 0 | I25: 0 | J25: 0 | K25: 0 | L25: 0
A26: III. | B26: INVERSIÓN | C26: 68287.37772 | D26: 14633.53506 | E26: 186.7109625 | F26: 179.2201274 | G26: 53653.84266 | H26: 21.42934104 | I26: 0.2734194353 | J26: 0.2624498602 | K26: 1.27591154 | L26: 95.98800464
A27: IV. | B27: TOTAL (I + II + III) | C27: 495698.6686 | D27: 60417.0205 | E27: 15668.87629 | F27: 15364.54583 | G27: 435281.6481 | H27: 12.18825555 | I27: 3.160968001 | J27: 3.099573754 | K27: 25.93453991 | L27: 98.05773907
A28: V. | B28: TOTAL SIN DEUDA (I + III) | C28: 383093.4822 | D28: 60002.45422 | E28: 15287.7237 | F28: 15014.79282 | G28: 323091.028 | H28: 15.66261422 | I28: 3.990598748 | J28: 3.919354809 | K28: 25.47849734 | L28: 98.21470552
A29: Fuente: Dirección General del Presupuesto Público Nacional- Subdirección de Análisis y Consolidación Presupuestal
C31: =+C27-'CUA5'!B8 -> 0 | D31: =+D28+'CUA3'!D26-'CUA1'!D28 -> 0 | E31: =+E28+'CUA3'!E26-'CUA1'!E28 -> 0 | F31: =+F28+'CUA3'!F26-'CUA1'!F28 -> 0 | G31: =+G28+'CUA3'!G26-'CUA1'!G28 -> 0
C37: =+C8/'CUA1'!C8 -> 0.9599570091
C38: =+C16/'CUA1'!C16 -> 1

Sheet CUA3
A1: Cuadro No. 3
A2: Ejecución del presupuesto recursos Propios
A3: =+'CUA1'!A3:L3 -> Acumulada a Enero 2025
A4: Miles de millones de pesos corrientes
B5: Concepto | C5: Apropiación Vigente | D5: Compromiso | E5: Obligación | F5: Pago | G5: Apropiación sin comprometer | H5: Porcentaje de ejecución
C6: Vigente | H6: Comp./Apro. | I6: Oblig./Apro. | J6: Pago/Apro. | K6: Oblig./Comp. | L6: Pago/Oblig.
C7: (1) | D7: (2) | E7: (3) | F7: (4) | G7: (5)=(1-2) | H7: (6)=(2/1) | I7: (7)=(3/1) | J7: (8)=(4/1) | K7: (9)=(3/2) | L7: (10)=(4/3)
A8: I. | B8: FUNCIONAMIENTO | C8: 13131.60679 | D8: 1943.862037 | E8: 413.4479073 | F8: 300.0907671 | G8: 11187.74475 | H8: 14.80292601 | I8: 3.148494422 | J8: 2.285255506 | K8: 21.26940593 | L8: 72.58248545
B9: Gastos de Personal | C9: 3598.439601 | D9: 279.4775524 | E9: 179.9909729 | F9: 177.1142818 | G9: 3318.962048 | H9: 7.766631747 | I9: 5.0019173 | J9: 4.921974563 | K9: 64.40265823 | L9: 98.40175812
B10: Adquisición de Bienes y Servicios | C10: 1303.722283 | D10: 542.4529255 | E10: 34.77436108 | F10: 32.39930041 | G10: 761.2693574 | H10: 41.60801212 | I10: 2.667313548 | J10: 2.485138195 | K10: 6.410576743 | L10: 93.17008106
B11: Transferencias | C11: 6019.466251 | D11: 698.4721125 | E11: 161.8615018 | F11: 65.94537138 | G11: 5320.994138 | H11: 11.60355559 | I11: 2.688967677 | J11: 1.095535196 | K11: 23.17365273 | L11: 40.74185069
B12: Gastos de Comercialización y Producción | C12: 1939.633809 | D12: 422.0345272 | E12: 35.86508939 | F12: 23.72901024 | G12: 1517.599282 | H12: 21.75846416 | I12: 1.849064974 | J12: 1.22337578 | K12: 8.498141048 | L12: 66.16186003
B13: Adquisición de Activos Financieros | C13: 128.2611267 | D13: 0 | E13: 0 | F13: 0 | G13: 128.2611267 | H13: 0 | I13: 0 | J13: 0 | K13: 0 | L13: 0
B14: Disminución de Pasivos | C14: 16.701 | D14: 0.069345479 | E14: 0.045774327 | F14: 0.045239479 | G14: 16.63165452 | H14: 0.4152175259 | I14: 0.2740813544 | J14: 0.2708788635 | K14: 66.00910061 | L14: 98.83155464
B15: Gastos por Tributos, Multas, Sanciones e Intereses de Mora | C15: 125.3827171 | D15: 1.355573377 | E15: 0.9102077669 | F15: 0.8575638209 | G15: 124.0271437 | H15: 1.081148509 | I15: 0.7259435654 | J15: 0.6839569605 | K15: 67.14559185 | L15: 94.2162715
A16: II. | B16: SERVICIO DE LA DEUDA | C16: 0 | D16: 0 | E16: 0 | F16: 0 | G16: 0 | H16: 0 | I16: 0 | J16: 0 | K16: 0 | L16: 0
B17: Servicio de la Deuda Pública Externa | C17: 0 | D17: 0 | E17: 0 | F17: 0 | G17: 0 | H17: 0 | I17: 0 | J17: 0 | K17: 0 | L17: 0
B18: Principal | C18: 0 | D18: 0 | E18: 0 | F18: 0 | G18: 0 | H18: 0 | I18: 0 | J18: 0 | K18: 0 | L18: 0
B19: Intereses | C19: 0 | D19: 0 | E19: 0 | F19: 0 | G19: 0 | H19: 0 | I19: 0 | J19: 0 | K19: 0 | L19: 0
B20: Comisiones y Otros Gastos | C20: 0 | D20: 0 | E20: 0 | F20: 0 | G20: 0 | H20: 0 | I20: 0 | J20: 0 | K20: 0 | L20: 0
B21: Servicio de la Deuda Pública Interna | C21: 0 | D21: 0 | E21: 0 | F21: 0 | G21: 0 | H21: 0 | I21: 0 | J21: 0 | K21: 0 | L21: 0
B22: Principal | H22: 0 | I22: 0 | J22: 0 | K22: 0 | L22: 0
B23: Fondo de Contingencias | C23: 0 | D23: 0 | E23: 0 | F23: 0 | G23: 0 | H23: 0 | I23: 0 | J23: 0 | K23: 0 | L23: 0
A24: III. | B24: INVERSIÓN | C24: 14176.85708 | D24: 2964.165715 | E24: 196.7540584 | F24: 137.448237 | G24: 11212.69136 | H24: 20.90848274 | I24: 1.387853862 | J24: 0.969525447 | K24: 6.637755016 | L24: 69.85789165
A25: IV. | B25: TOTAL (I + II + III) | C25: 27308.46387 | D25: 4908.027751 | E25: 610.2019657 | F25: 437.5390041 | G25: 22400.43612 | H25: 17.97255157 | I25: 2.234479276 | J25: 1.602210239 | K25: 12.43273259 | L25: 71.70396503
A26: V. | B26: TOTAL SIN DEUDA (I + III) | C26: 27308.46387 | D26: 4908.027751 | E26: 610.2019657 | F26: 437.5390041 | G26: 22400.43612 | H26: 17.97255157 | I26: 2.234479276 | J26: 1.602210239 | K26: 12.43273259 | L26: 71.70396503
A27: Fuente: Dirección General del Presupuesto Público Nacional- Subdirección de Análisis y Consolidación Presupuestal
C30: =+C25-'CUA6'!B8 -> 0 | D30: =+D25-'CUA6'!C8 -> 0 | E30: =+E25-'CUA6'!D8 -> 0 | F30: =+F25-'CUA6'!E8 -> 0
C34: =+C8/'CUA1'!C8 -> 0.0400429909
C35: =+C24/'CUA1'!C26 -> 0.1719152201

Sheet CUA4
A1: Cuadro No. 4
A2: Ejecución Presupuesto General de la Nación por sectores
A3: =+'CUA1'!A3:L3 -> Acumulada a Enero 2025
A4: Miles de millones de pesos
A5: Sector | B5: Apropiación Vigente | C5: Compromiso | D5: Obligación | E5: Pago | F5: Apropiación sin comprometer | G5: Porcentaje de ejecución
B6: Vigente | G6: Comp./Apro. | H6: Oblig./Apro. | I6: Pago/Apro. | J6: Oblig./Comp. | K6: Pago/Oblig.
B7: (1) | C7: (2) | D7: (3) | E7: (4) | F7: (5)=(1-2) | G7: (6)=(2/1) | H7: (7)=(3/1) | I7: (8)=(4/1) | J7: (9)=(3/2) | K7: (10)=(4/3)
A8: TOTAL PGN | B8: 523007.1325 | C8: 65325.04826 | D8: 16279.07826 | E8: 15802.08484 | F8: 457682.0842 | G8: 12.49027866 | H8: 3.112592018 | I8: 3.021389931 | J8: 24.9201167 | K8: 97.06989907
A9: SERVICIO DE LA DEUDA PÚBLICA NACIONAL | B9: 109828.422 | C9: 396.8707092 | D9: 363.4570136 | E9: 349.7530166 | F9: 109431.5513 | G9: 0.3613551956 | H9: 0.3309316541 | I9: 0.3184540124 | J9: 91.58071009 | K9: 96.22954119
A10: EDUCACIÓN | B10: 79242.74706 | C10: 22788.86107 | D10: 4888.265694 | E10: 4692.776067 | F10: 56453.886 | G10: 28.7582926 | H10: 6.168723164 | I10: 5.922025978 | J10: 21.45024133 | K10: 96.00083876
A11: SALUD Y PROTECCIÓN SOCIAL | B11: 67075.09074 | C11: 7747.986343 | D11: 4383.979333 | E11: 4383.381556 | F11: 59327.1044 | G11: 11.55121261 | H11: 6.535927546 | I11: 6.535036341 | J11: 56.58217682 | K11: 99.98636453
A12: DEFENSA Y POLICÍA | B12: 59080.68297 | C12: 7835.087539 | D12: 3174.306329 | E12: 3124.145015 | F12: 51245.59543 | G12: 13.26167394 | H12: 5.372832827 | I12: 5.287929756 | J12: 40.51398677 | K12: 98.41977085
A13: HACIENDA | B13: 36432.09813 | C13: 2678.911316 | D13: 738.1628825 | E13: 737.9921396 | F13: 33753.18681 | G13: 7.353162332 | H13: 2.026133329 | I13: 2.025664668 | J13: 27.55458451 | K13: 99.97686922
A14: TRABAJO | B14: 53404.42189 | C14: 1327.590636 | D14: 693.5568964 | E14: 692.36211 | F14: 52076.83125 | G14: 2.485918935 | H14: 1.298688146 | I14: 1.296450903 | J14: 52.24177374 | K14: 99.82773059
A15: TRANSPORTE | B15: 17126.79467 | C15: 5292.815862 | D15: 80.00307953 | E15: 69.27975278 | F15: 11833.97881 | G15: 30.90371528 | H15: 0.4671223137 | I15: 0.4045109088 | J15: 1.511540957 | K15: 86.59635752
A16: INCLUSIÓN SOCIAL Y RECONCILIACIÓN | B16: 10052.11643 | C16: 482.2999783 | D16: 35.50416846 | E16: 35.4790846 | F16: 9569.816453 | G16: 4.797994349 | H16: 0.3532009275 | I16: 0.3529513893 | J16: 7.361428584 | K16: 99.92934953
A17: IGUALDAD Y EQUIDAD | B17: 12017.47558 | C17: 3589.737825 | D17: 227.8346316 | E17: 227.3239412 | F17: 8427.737757 | G17: 29.87098081 | H17: 1.895860991 | I17: 1.891611426 | J17: 6.346832073 | K17: 99.7758504
A18: MINAS Y ENERGÍA | B18: 11214.44332 | C18: 332.2584114 | D18: 117.8122805 | E18: 21.85496716 | F18: 10882.18491 | G18: 2.962772222 | H18: 1.050540603 | I18: 0.1948823186 | J18: 35.45802797 | K18: 18.55066982
A19: VIVIENDA, CIUDAD Y TERRITORIO | B19: 8625.806779 | C19: 1996.25954 | D19: 5.044367156 | E19: 5.042170656 | F19: 6629.547239 | G19: 23.14287337 | H19: 0.05847994611 | I19: 0.05845448183 | J19: 0.252690948 | K19: 99.95645638
A20: AGRICULTURA Y DESARROLLO RURAL | B20: 5025.540437 | C20: 503.1961718 | D20: 32.21467526 | E20: 30.13911461 | F20: 4522.344265 | G20: 10.01277729 | H20: 0.6410191234 | I20: 0.5997188757 | J20: 6.402011196 | K20: 93.55709585
A21: RAMA JUDICIAL | B21: 10414.88358 | C21: 851.1022692 | D21: 430.6096191 | E21: 391.4384092 | F21: 9563.781309 | G21: 8.171980635 | H21: 4.134560083 | I21: 3.758452087 | J21: 50.59434508 | K21: 90.90331286
A22: FISCALÍA | B22: 7137.16978 | C22: 905.0634696 | D22: 268.0055995 | E22: 261.6428302 | F22: 6232.10631 | G22: 12.68098557 | H22: 3.755068294 | I22: 3.665918541 | J22: 29.61180166 | K22: 97.62588197
A23: JUSTICIA Y DEL DERECHO | B23: 5520.699808 | C23: 873.5128544 | D23: 164.7892409 | E23: 164.5688548 | F23: 4647.186953 | G23: 15.82250231 | H23: 2.984933915 | I23: 2.980941919 | J23: 18.86511916 | K23: 99.86626182
A24: ORGANISMOS DE CONTROL | B24: 4415.918145 | C24: 411.1758659 | D24: 184.3271768 | E24: 184.1512097 | F24: 4004.742279 | G24: 9.311220281 | H24: 4.174152933 | I24: 4.170168097 | J24: 44.82927916 | K24: 99.90453546
A25: TECNOLOGÍAS DE LA INFORMACIÓN Y LAS COMUNICACIONES | B25: 2697.652453 | C25: 1374.165295 | D25: 63.86182937 | E25: 9.367483417 | F25: 1323.487158 | G25: 50.93930071 | H25: 2.367311227 | I25: 0.3472457472 | J25: 4.647317874 | K25: 14.6683606
A26: INTERIOR | B26: 4312.408706 | C26: 2065.609034 | D26: 26.59973771 | E26: 24.07363914 | F26: 2246.799672 | G26: 47.89919451 | H26: 0.61681857 | I26: 0.5582411311 | J26: 1.287743095 | K26: 90.50329517
A27: PRESIDENCIA DE LA REPÚBLICA | B27: 2030.097595 | C27: 1115.961537 | D27: 23.82352726 | E27: 23.43945912 | F27: 914.1360587 | G27: 54.97083191 | H27: 1.173516353 | I27: 1.154597649 | J27: 2.134798241 | K27: 98.38786198
A28: AMBIENTE Y DESARROLLO SOSTENIBLE | B28: 1781.308693 | C28: 280.3802384 | D28: 30.11218251 | E28: 30.04797213 | F28: 1500.928454 | G28: 15.74012632 | H28: 1.690452791 | I28: 1.686848116 | J28: 10.73976636 | K28: 99.78676276
A29: RELACIONES EXTERIORES | B29: 2095.33793 | C29: 405.7551396 | D29: 137.3051903 | E29: 136.2577236 | F29: 1689.582791 | G29: 19.36466351 | H29: 6.552890027 | I29: 6.50289968 | J29: 33.83942109 | K29: 99.23712519
A30: PLANEACIÓN | B30: 1277.47619 | C30: 233.6184725 | D30: 13.58467664 | E30: 13.45941063 | F30: 1043.857717 | G30: 18.28750112 | H30: 1.063399596 | I30: 1.053593855 | J30: 5.814898324 | K30: 99.07788744
A31: REGISTRADURÍA | B31: 4592.600812 | C31: 327.949908 | D31: 40.22292584 | E31: 40.22277941 | F31: 4264.650904 | G31: 7.140831991 | H31: 0.8758202048 | I31: 0.8758170165 | J31: 12.26496024 | K31: 99.99963596
A32: INFORMACIÓN ESTADÍSTICA | B32: 1174.1439 | C32: 195.4075704 | D32: 17.35909864 | E32: 17.3543797 | F32: 978.7363297 | G32: 16.64255722 | H32: 1.478447288 | I32: 1.478045382 | J32: 8.883534353 | K32: 99.97281572
A33: COMERCIO, INDUSTRIA Y TURISMO | B33: 1524.450332 | C33: 362.2389412 | D33: 20.42239353 | E33: 20.11116832 | F33: 1162.211391 | G33: 23.7619379 | H33: 1.339656209 | I33: 1.31924064 | J33: 5.63782388 | K33: 98.47605907
A34: CULTURA | B34: 1090.762537 | C34: 194.2167698 | D34: 6.607624131 | E34: 6.546328849 | F34: 896.5457675 | G34: 17.80559592 | H34: 0.6057802597 | I34: 0.6001607706 | J34: 3.402190315 | K34: 99.07235519
A35: DEPORTE Y RECREACIÓN | B35: 464.3658176 | C35: 9.537161485 | D35: 1.713302725 | E35: 1.713302725 | F35: 454.8286561 | G35: 2.053803515 | H35: 0.3689553925 | I35: 0.3689553925 | J35: 17.96449318 | K35: 100
A36: CONGRESO DE LA REPÚBLICA | B36: 1313.628 | C36: 132.7047165 | D36: 52.90597768 | E36: 52.73886657 | F36: 1180.923283 | G36: 10.10215347 | H36: 4.02747031 | I36: 4.014748968 | J36: 39.86744335 | K36: 99.68413568
A37: SISTEMA INTEGRAL DE VERDAD, JUSTICIA, REPARACIÓN Y NO REPETICIÓN | B37: 931.074301 | C37: 242.2531875 | D37: 35.75219081 | E37: 35.7264093 | F37: 688.8211135 | G37: 26.01867404 | H37: 3.839885901 | I37: 3.837116894 | J37: 14.75819211 | K37: 99.92788832
A38: EMPLEO PÚBLICO | B38: 613.8294937 | C38: 215.223112 | D38: 10.40215353 | E38: 10.25916906 | F38: 398.6063817 | G38: 35.06236084 | H38: 1.694632407 | I38: 1.671338566 | J38: 4.83319539 | K38: 98.62543395
A39: CIENCIA, TECNOLOGÍA E INNOVACIÓN | B39: 299.8643731 | C39: 139.084375 | D39: 0.9429796023 | E39: 0.9429796023 | F39: 160.7799981 | G39: 46.38242736 | H39: 0.3144687021 | I39: 0.3144687021 | J39: 0.6779910411 | K39: 100
A40: INTELIGENCIA | B40: 193.82 | C40: 18.21293937 | D40: 9.589483325 | E40: 8.493525617 | F40: 175.6070606 | G40: 9.396831786 | H40: 4.94762322 | I40: 4.382171921 | J40: 52.65203563 | K40: 88.57125383
A41: Fuente: Dirección General del Presupuesto Público Nacional- Subdirección de Análisis y Consolidación Presupuestal
B44: =+B8-'CUA1'!C27 -> 0 | C44: =+C8-'CUA1'!D27 -> 0 | D44: =+D8-'CUA1'!E27 -> 0 | E44: =+E8-'CUA1'!F27 -> 0 | F44: =+F8-'CUA1'!G27 -> 0

Sheet CUA5
A1: Cuadro No. 5
A2: Ejecución del presupuesto recursos Nación por sectores
A3: =+'CUA1'!A3:L3 -> Acumulada a Enero 2025
A4: Miles de millones de pesos
A5: Sector | B5: Apropiación Vigente | C5: Compromiso | D5: Obligación | E5: Pago | F5: Apropiación sin comprometer | G5: Porcentaje de ejecución
B6: Vigente | G6: Comp./Apro. | H6: Oblig./Apro. | I6: Pago/Apro. | J6: Oblig./Comp. | K6: Pago/Oblig.
B7: (1) | C7: (2) | D7: (3) | E7: (4) | F7: (5)=(1-2) | G7: (6)=(2/1) | H7: (7)=(3/1) | I7: (8)=(4/1) | J7: (9)=(3/2) | K7: (10)=(4/3)
A8: TOTAL RECURSOS NACIÓN | B8: 495698.6686 | C8: 60417.0205 | D8: 15668.87629 | E8: 15364.54583 | F8: 435281.6481 | G8: 12.18825555 | H8: 3.160968001 | I8: 3.099573754 | J8: 25.93453991 | K8: 98.05773907
A9: SERVICIO DE LA DEUDA PÚBLICA NACIONAL | B9: 109828.422 | C9: 396.8707092 | D9: 363.4570136 | E9: 349.7530166 | F9: 109431.5513 | G9: 0.3613551956 | H9: 0.3309316541 | I9: 0.3184540124 | J9: 91.58071009 | K9: 96.22954119
A10: EDUCACIÓN | B10: 79183.07766 | C10: 22782.90163 | D10: 4887.743894 | E10: 4692.327901 | F10: 56400.17603 | G10: 28.77243763 | H10: 6.172712704 | I10: 5.925922608 | J10: 21.45356185 | K10: 96.00191832
A11: SALUD Y PROTECCIÓN SOCIAL | B11: 66224.8852 | C11: 7511.077249 | D11: 4363.210318 | E11: 4363.097259 | F11: 58713.80795 | G11: 11.34177466 | H11: 6.588475472 | I11: 6.588304753 | J11: 58.09034008 | K11: 99.99740882
A12: DEFENSA Y POLICÍA | B12: 56165.00273 | C12: 7353.625272 | D12: 3071.508926 | E12: 3033.732017 | F12: 48811.37746 | G12: 13.09289578 | H12: 5.468723897 | I12: 5.401463313 | J12: 41.76863537 | K12: 98.7700863
A13: HACIENDA | B13: 35906.20967 | C13: 2639.237303 | D13: 723.1292596 | E13: 722.9838604 | F13: 33266.97236 | G13: 7.350364541 | H13: 2.013939278 | I13: 2.013534336 | J13: 27.39917546 | K13: 99.97989305
A14: TRABAJO | B14: 50334.01156 | C14: 1190.235611 | D14: 630.321339 | E14: 630.2139805 | F14: 49143.77595 | G14: 2.364674649 | H14: 1.252277177 | I14: 1.252063885 | J14: 52.95769452 | K14: 99.98296766
A15: INCLUSIÓN SOCIAL Y RECONCILIACIÓN | B15: 9985.928959 | C15: 482.2999783 | D15: 35.50416846 | E15: 35.4790846 | F15: 9503.628981 | G15: 4.829795809 | H15: 0.3555419692 | I15: 0.3552907771 | J15: 7.361428584 | K15: 99.92934953
A16: TRANSPORTE | B16: 12155.98193 | C16: 4714.272294 | D16: 21.27190258 | E16: 17.59015076 | F16: 7441.709635 | G16: 38.78150134 | H16: 0.1749912323 | I16: 0.14470366 | J16: 0.4512234603 | K16: 82.69194867
A17: VIVIENDA, CIUDAD Y TERRITORIO | B17: 8625.806779 | C17: 1996.25954 | D17: 5.044367156 | E17: 5.042170656 | F17: 6629.547239 | G17: 23.14287337 | H17: 0.05847994611 | I17: 0.05845448183 | J17: 0.252690948 | K17: 99.95645638
A18: RAMA JUDICIAL | B18: 10414.88358 | C18: 851.1022692 | D18: 430.6096191 | E18: 391.4384092 | F18: 9563.781309 | G18: 8.171980635 | H18: 4.134560083 | I18: 3.758452087 | J18: 50.59434508 | K18: 90.90331286
A19: AGRICULTURA Y DESARROLLO RURAL | B19: 4901.967155 | C19: 475.5782116 | D19: 32.17668784 | E19: 30.13907772 | F19: 4426.388943 | G19: 9.701782908 | H19: 0.6564035788 | I19: 0.6148363864 | J19: 6.765803616 | K19: 93.66743361
A20: IGUALDAD Y EQUIDAD | B20: 7595.205123 | C20: 2335.305311 | D20: 112.6348846 | E20: 112.1307608 | F20: 5259.899812 | G20: 30.74709996 | H20: 1.482973571 | I20: 1.476336175 | J20: 4.823133151 | K20: 99.55242653
A21: MINAS Y ENERGÍA | B21: 7193.515649 | C21: 176.2888084 | D21: 15.1038777 | E21: 15.07138162 | F21: 7017.226841 | G21: 2.450662749 | H21: 0.2099651747 | I21: 0.2095134334 | J21: 8.567689484 | K21: 99.78484941
A22: FISCALÍA | B22: 7095.704065 | C22: 874.782094 | D22: 267.4212361 | E22: 261.1087386 | F22: 6220.921971 | G22: 12.32833396 | H22: 3.768776624 | I22: 3.67981438 | J22: 30.57004001 | K22: 97.63949279
A23: ORGANISMOS DE CONTROL | B23: 4396.345327 | C23: 411.155099 | D23: 184.3064099 | E23: 184.1304428 | F23: 3985.190228 | G23: 9.352202078 | H23: 4.192264169 | I23: 4.188261592 | J23: 44.82649256 | K23: 99.9045247
A24: JUSTICIA Y DEL DERECHO | B24: 4420.209349 | C24: 777.2294247 | D24: 145.3536399 | E24: 145.2998191 | F24: 3642.979924 | G24: 17.5835433 | H24: 3.288388139 | I24: 3.287170531 | J24: 18.70151017 | K24: 99.96297251
A25: INTERIOR | B25: 4136.409104 | C25: 2041.902352 | D25: 24.94591345 | E25: 22.81902042 | F25: 2094.506752 | G25: 49.36412963 | H25: 0.6030813883 | I25: 0.5516625616 | J25: 1.221699628 | K25: 91.47398217
A26: PRESIDENCIA DE LA REPÚBLICA | B26: 1932.157035 | C26: 1115.961537 | D26: 23.82352726 | E26: 23.43945912 | F26: 816.1954987 | G26: 57.75728972 | H26: 1.233001605 | I26: 1.213123917 | J26: 2.134798241 | K26: 98.38786198
A27: AMBIENTE Y DESARROLLO SOSTENIBLE | B27: 1500.701187 | C27: 230.3471513 | D27: 30.08721142 | E27: 30.02604281 | F27: 1270.354036 | G27: 15.34930159 | H27: 2.004876898 | I27: 2.000800897 | J27: 13.06168158 | K27: 99.79669567
A28: INFORMACIÓN ESTADÍSTICA | B28: 1051.190432 | C28: 191.1314807 | D28: 17.3303041 | E28: 17.32562016 | F28: 860.0589514 | G28: 18.18238397 | H28: 1.64863602 | I28: 1.648190435 | J28: 9.067215952 | K28: 99.97297251
A29: REGISTRADURÍA | B29: 4321.351017 | C29: 229.0303842 | D29: 40.1601269 | E29: 40.15998048 | F29: 4092.320633 | G29: 5.299971774 | H29: 0.9293419292 | I29: 0.9293385407 | J29: 17.53484676 | K29: 99.99963539
A30: CULTURA | B30: 1068.4397 | C30: 191.3796419 | D30: 6.58337339 | E30: 6.522604286 | F30: 877.0600584 | G30: 17.91206765 | H30: 0.6161670507 | I30: 0.6104794013 | J30: 3.439954911 | K30: 99.07693061
A31: PLANEACIÓN | B31: 1018.330446 | C31: 211.6095275 | D31: 7.699383506 | E31: 7.597756248 | F31: 806.7209185 | G31: 20.78004525 | H31: 0.7560790837 | I31: 0.746099292 | J31: 3.638486223 | K31: 98.6800598
A32: DEPORTE Y RECREACIÓN | B32: 464.3658176 | C32: 9.537161485 | D32: 1.713302725 | E32: 1.713302725 | F32: 454.8286561 | G32: 2.053803515 | H32: 0.3689553925 | I32: 0.3689553925 | J32: 17.96449318 | K32: 100
A33: RELACIONES EXTERIORES | B33: 1490.253752 | C33: 181.1770145 | D33: 111.4402862 | E33: 110.4538698 | F33: 1309.076738 | G33: 12.15746072 | H33: 7.477940318 | I33: 7.411749148 | J33: 61.50906421 | K33: 99.11484758
A34: CONGRESO DE LA REPÚBLICA | B34: 1313.628 | C34: 132.7047165 | D34: 52.90597768 | E34: 52.73886657 | F34: 1180.923283 | G34: 10.10215347 | H34: 4.02747031 | I34: 4.014748968 | J34: 39.86744335 | K34: 99.68413568
A35: TECNOLOGÍAS DE LA INFORMACIÓN Y LAS COMUNICACIONES | B35: 598.5730198 | C35: 268.3915535 | D35: 4.510663005 | E35: 4.510663005 | F35: 330.1814663 | G35: 44.83856516 | H35: 0.7535693818 | I35: 0.7535693818 | J35: 1.680627779 | K35: 100
A36: COMERCIO, INDUSTRIA Y TURISMO | B36: 896.5165075 | C36: 241.8190847 | D36: 9.149229992 | E36: 9.138330656 | F36: 654.6974229 | G36: 26.97318818 | H36: 1.020531124 | I36: 1.019315381 | J36: 3.783502036 | K36: 99.88087155
A37: SISTEMA INTEGRAL DE VERDAD, JUSTICIA, REPARACIÓN Y NO REPETICIÓN | B37: 931.074301 | C37: 242.2531875 | D37: 35.75219081 | E37: 35.7264093 | F37: 688.8211135 | G37: 26.01867404 | H37: 3.839885901 | I37: 3.837116894 | J37: 14.75819211 | K37: 99.92788832
A38: CIENCIA, TECNOLOGÍA E INNOVACIÓN | B38: 299.8643731 | C38: 139.084375 | D38: 0.9429796023 | E38: 0.9429796023 | F38: 160.7799981 | G38: 46.38242736 | H38: 0.3144687021 | I38: 0.3144687021 | J38: 0.6779910411 | K38: 100
A39: INTELIGENCIA | B39: 193.82 | C39: 18.21293937 | D39: 9.589483325 | E39: 8.493525617 | F39: 175.6070606 | G39: 9.396831786 | H39: 4.94762322 | I39: 4.382171921 | J39: 52.65203563 | K39: 88.57125383
A40: EMPLEO PÚBLICO | B40: 54.83716489 | C40: 4.257589848 | D40: 3.444797203 | E40: 3.399331185 | F40: 50.57957504 | G40: 7.764059022 | H40: 6.281865976 | I40: 6.198955019 | J40: 80.90955978 | K40: 98.680154
A41: Fuente: Dirección General del Presupuesto Público Nacional- Subdirección de Análisis y Consolidación Presupuestal
B44: =+B8-'CUA2'!C27 -> 0 | C44: =+C8-'CUA2'!D27 -> 0 | D44: =+D8-'CUA2'!E27 -> 0 | E44: =+E8-'CUA2'!F27 -> 0 | F44: =+F8-'CUA2'!G27 -> 0

Sheet CUA6
A1: Cuadro No. 6
A2: Ejecución del presupuesto recursos Propios por sectores
A3: =+'CUA1'!A3:L3 -> Acumulada a Enero 2025
A4: Miles de millones de pesos
A5: Sector | B5: Apropiación Vigente | C5: Compromiso | D5: Obligación | E5: Pago | F5: Apropiación sin comprometer | G5: Porcentaje de ejecución
B6: Vigente | G6: Comp./Apro. | H6: Oblig./Apro. | I6: Pago/Apro. | J6: Oblig./Comp. | K6: Pago/Oblig.
B7: (1) | C7: (2) | D7: (3) | E7: (4) | F7: (5)=(1-2) | G7: (6)=(2/1) | H7: (7)=(3/1) | I7: (8)=(4/1) | J7: (9)=(3/2) | K7: (10)=(4/3)
A8: TOTAL RECURSOS PROPIOS | B8: 27308.46387 | C8: 4908.027751 | D8: 610.2019657 | E8: 437.5390041 | F8: 22400.43612 | G8: 17.97255157 | H8: 2.234479276 | I8: 1.602210239 | J8: 12.43273259 | K8: 71.70396503
A9: MINAS Y ENERGÍA | B9: 4020.927669 | C9: 155.9696031 | D9: 102.7084028 | E9: 6.783585542 | F9: 3864.958065 | G9: 3.878945754 | H9: 2.554345943 | I9: 0.1687069776 | J9: 65.85155103 | K9: 6.604703569
A10: IGUALDAD Y EQUIDAD | B10: 4422.270459 | C10: 1254.432514 | D10: 115.199747 | E10: 115.1931804 | F10: 3167.837945 | G10: 28.36625497 | H10: 2.604990989 | I10: 2.604842501 | J10: 9.183415266 | K10: 99.99429985
A11: TRANSPORTE | B11: 4970.812742 | C11: 578.5435677 | D11: 58.73117695 | E11: 51.68960202 | F11: 4392.269175 | G11: 11.63881236 | H11: 1.181520608 | I11: 1.039862185 | J11: 10.15155647 | K11: 88.01049919
A12: TECNOLOGÍAS DE LA INFORMACIÓN Y LAS COMUNICACIONES | B12: 2099.079433 | C12: 1105.773742 | D12: 59.35116637 | E12: 4.856820412 | F12: 993.3056916 | G12: 52.67898509 | H12: 2.827485489 | I12: 0.2313785908 | J12: 5.367387933 | K12: 8.183192866
A13: TRABAJO | B13: 3070.410329 | C13: 137.3550249 | D13: 63.23555733 | E13: 62.14812947 | F13: 2933.055304 | G13: 4.473507127 | H13: 2.059514871 | I13: 2.024098502 | J13: 46.0380371 | K13: 98.2803538
A14: DEFENSA Y POLICÍA | B14: 2915.680235 | C14: 481.4622674 | D14: 102.7974026 | E14: 90.4129977 | F14: 2434.217968 | G14: 16.51286247 | H14: 3.525674774 | I14: 3.100922955 | J14: 21.3510818 | K14: 87.95260916
A15: JUSTICIA Y DEL DERECHO | B15: 1100.490459 | C15: 96.28342973 | D15: 19.43560097 | E15: 19.26903565 | F15: 1004.207029 | G15: 8.749138071 | H15: 1.766085367 | I15: 1.750949814 | J15: 20.1858212 | K15: 99.14298858
A16: SALUD Y PROTECCIÓN SOCIAL | B16: 850.205546 | C16: 236.9090945 | D16: 20.76901475 | E16: 20.28429707 | F16: 613.2964515 | G16: 27.86491992 | H16: 2.442822779 | I16: 2.385810956 | J16: 8.766659966 | K16: 97.66614985
A17: EMPLEO PÚBLICO | B17: 558.9923289 | C17: 210.9655222 | D17: 6.957356324 | E17: 6.859837871 | F17: 348.0268067 | G17: 37.74032509 | H17: 1.244624651 | I17: 1.22717925 | J17: 3.29786415 | K17: 98.5983404
A18: COMERCIO, INDUSTRIA Y TURISMO | B18: 627.9338246 | C18: 120.4198565 | D18: 11.27316354 | E18: 10.97283766 | F18: 507.5139681 | G18: 19.17715718 | H18: 1.795278912 | I18: 1.747451281 | J18: 9.361548718 | K18: 97.33592193
A19: HACIENDA | B19: 525.8884612 | C19: 39.674013 | D19: 15.03362284 | E19: 15.00827922 | F19: 486.2144481 | G19: 7.544187776 | H19: 2.858709393 | I19: 2.853890193 | J19: 37.89287168 | K19: 99.83142041
A20: RELACIONES EXTERIORES | B20: 605.084178 | C20: 224.5781251 | D20: 25.86490408 | E20: 25.80385376 | F20: 380.5060529 | G20: 37.11518715 | H20: 4.274596002 | I20: 4.264506444 | J20: 11.5171075 | K20: 99.76396465
A21: PLANEACIÓN | B21: 259.1457439 | C21: 22.00894498 | D21: 5.885293135 | E21: 5.861654383 | F21: 237.1367989 | G21: 8.492883059 | H21: 2.271035999 | I21: 2.261914201 | J21: 26.74046003 | K21: 99.59834198
A22: AMBIENTE Y DESARROLLO SOSTENIBLE | B22: 280.6075056 | C22: 50.03308715 | D22: 0.024971096 | E22: 0.021929314 | F22: 230.5744184 | G22: 17.83027402 | H22: 0.008898940871 | I22: 0.007814942068 | J22: 0.04990916496 | K22: 87.81878857
A23: REGISTRADURÍA | B23: 271.2497952 | C23: 98.91952383 | D23: 0.062798932 | E23: 0.062798932 | F23: 172.3302714 | G23: 36.46805475 | H23: 0.02315169748 | I23: 0.02315169748 | J23: 0.0634848709 | K23: 100
A24: INTERIOR | B24: 175.999602 | C24: 23.70668188 | D24: 1.653824265 | E24: 1.254618716 | F24: 152.2929201 | G24: 13.46973607 | H24: 0.9396750028 | I24: 0.712853155 | J24: 6.976194618 | K24: 75.86167057
A25: AGRICULTURA Y DESARROLLO RURAL | B25: 123.5732821 | C25: 27.61796021 | D25: 0.037987421 | E25: 3.689e-05 | F25: 95.95532188 | G25: 22.34945916 | H25: 0.03074080445 | I25: 2.985273141e-05 | J25: 0.1375460777 | K25: 0.0971110937
A26: PRESIDENCIA DE LA REPÚBLICA | B26: 97.94056 | C26: 0 | D26: 0 | E26: 0 | F26: 97.94056 | G26: 0 | H26: 0 | I26: 0 | J26: 0 | K26: 0
A27: INCLUSIÓN SOCIAL Y RECONCILIACIÓN | B27: 66.18747203 | C27: 0 | D27: 0 | E27: 0 | F27: 66.18747203 | G27: 0 | H27: 0 | I27: 0 | J27: 0 | K27: 0
A28: EDUCACIÓN | B28: 59.66940273 | C28: 5.959433716 | D28: 0.5217998813 | E28: 0.4481664234 | F28: 53.70996901 | G28: 9.987419755 | H28: 0.8744848406 | I28: 0.7510824692 | J28: 8.755863497 | K28: 85.88856368
A29: FISCALÍA | B29: 41.465715 | C29: 30.2813756 | D29: 0.5843633805 | E29: 0.5340916735 | F29: 11.1843394 | G29: 73.0275014 | H29: 1.409268791 | I29: 1.288031989 | J29: 1.929778185 | K29: 91.3971839
A30: INFORMACIÓN ESTADÍSTICA | B30: 122.9534679 | C30: 4.276089715 | D30: 0.028794539 | E30: 0.028759539 | F30: 118.6773782 | G30: 3.477811393 | H30: 0.02341905396 | I30: 0.02339058791 | J30: 0.6733848193 | K30: 99.87844917
A31: CULTURA | B31: 22.32283694 | C31: 2.837127878 | D31: 0.02425074104 | E31: 0.02372456304 | F31: 19.48570907 | G31: 12.70953098 | H31: 0.1086364654 | I31: 0.1062793367 | J31: 0.854763764 | K31: 97.83026012
A32: ORGANISMOS DE CONTROL | B32: 19.57281803 | C32: 0.020766878 | D32: 0.020766878 | E32: 0.020766878 | F32: 19.55205116 | G32: 0.1061006032 | H32: 0.1061006032 | I32: 0.1061006032 | J32: 100 | K32: 100
A33: Fuente: Dirección General del Presupuesto Público Nacional- Subdirección de Análisis y Consolidación Presupuestal
B36: =+B8-'CUA3'!C25 -> 0 | C36: =+C8-'CUA3'!D25 -> 0 | D36: =+D8-'CUA3'!E25 -> 0 | E36: =+E8-'CUA3'!F25 -> 0 | F36: =+F8-'CUA3'!G25 -> 0

Sheet CUA7
A1: Cuadro No. 7
A2: Ejecución del Presupuesto General de la Nación detallado por sector, entidad y rubro presupuestal
A3: =+'CUA1'!A3:L3 -> Acumulada a Enero 2025
A4: Cifras en Pesos
A5: Entidad/Detalle | B5: Apropiación Vigente | C5: Compromiso | D5: Obligación | E5: Pago | F5: Apropiación sin comprometer | G5: Porcentaje de Ejecución
G6: Comp/ Aprop | H6: Oblig/ Aprop | I6: Pago/ Aprop
A7: TOTAL | B7: =+'CUA1'!C27*1000000000 -> 5.230071325e+14 | C7: =+'CUA1'!D27*1000000000 -> 6.532504826e+13 | D7: =+'CUA1'!E27*1000000000 -> 1.627907826e+13 | E7: =+'CUA1'!F27*1000000000 -> 1.580208484e+13 | F7: =+B7-C7 -> 4.576820842e+14 | G7: =IFERROR(IF(C7>0,+C7/B7*100,0),0) -> 12.49027866 | H7: =IFERROR(IF(D7>0,+D7/B7*100,0),0) -> 3.112592018 | I7: =IFERROR(IF(E7>0,+E7/B7*100,0),0) -> 3.021389931
A8: TOTAL SIN DEUDA | B8: =+'CUA1'!C28*1000000000 -> 410401946062670 | C8: =+'CUA1'!D28*1000000000 -> 6.491048197e+13 | D8: =+'CUA1'!E28*1000000000 -> 1.589792567e+13 | E8: =+'CUA1'!F28*1000000000 -> 1.545233182e+13 | F8: =+B8-C8 -> 3.454914641e+14 | G8: =IFERROR(IF(C8>0,+C8/B8*100,0),0) -> 15.81631924 | H8: =IFERROR(IF(D8>0,+D8/B8*100,0),0) -> 3.873745196 | I8: 3.765170211
A9: AGRICULTURA Y DESARROLLO RURAL | B9: 5025540437000 | C9: 5.031961718e+11 | D9: 3.221467526e+10 | E9: 3.013911461e+10 | F9: =+B9-C9 -> 4.522344265e+12 | G9: =IFERROR(IF(C9>0,+C9/B9*100,0),0) -> 10.01277729 | H9: =IFERROR(IF(D9>0,+D9/B9*100,0),0) -> 0.6410191234 | I9: =IFERROR(IF(E9>0,+E9/B9*100,0),0) -> 0.5997188757
A10: 170101 Ministerio de Agricultura y Desarrollo Rural | B10: 1478725649864 | C10: 4.529600605e+10 | D10: 5938993330 | E10: 5938993330 | F10: =+B10-C10 -> 1.433429644e+12 | G10: =IFERROR(IF(C10>0,+C10/B10*100,0),0) -> 3.063178491 | H10: 0.4016291549 | I10: 0.4016291549
A11: Funcionamiento | B11: 422852969000 | C11: 1.146154913e+10 | D11: 4560644964 | E11: 4560644964 | F11: 4.113914199e+11 | G11: 2.710528238 | H11: 1.07854155 | I11: 1.07854155
A12: Gastos de Personal | B12: 36807073000 | C12: 2213841541 | D12: 2213841541 | E12: 2213841541 | F12: 34593231459 | G12: 6.014717717 | H12: 6.014717717 | I12: 6.014717717
A13: 01-01-01-- SALARIO | B13: 24121006000 | C13: 1438922092 | D13: 1438922092 | E13: 1438922092 | F13: 22682083908 | G13: 5.965431508 | H13: 5.965431508 | I13: 5.965431508
A14: 01-01-02-- CONTRIBUCIONES INHERENTES A LA NÓMINA | B14: 8786830000 | C14: 580242612 | D14: 580242612 | E14: 580242612 | F14: 8206587388 | G14: 6.603548857 | H14: 6.603548857 | I14: 6.603548857
A15: 01-01-03-- REMUNERACIONES NO CONSTITUTIVAS DE FACTOR SALARIAL | B15: 3899237000 | C15: 194676837 | D15: 194676837 | E15: 194676837 | F15: 3704560163 | G15: 4.992690544 | H15: 4.992690544 | I15: 4.992690544
A16: Adquisición de Bienes y Servicios | B16: 15682000000 | C16: 6990522011 | D16: 89617846.3 | E16: 89617846.3 | F16: 8691477989 | G16: 44.57672498 | H16: 0.5714694956 | I16: 0.5714694956
A17: 02---- ADQUISICIÓN DE BIENES Y SERVICIOS | B17: 15682000000 | C17: 6990522011 | D17: 89617846.3 | E17: 89617846.3 | F17: 8691477989 | G17: 44.57672498 | H17: 0.5714694956 | I17: 0.5714694956
A18: Transferencias | B18: 359289896000 | C18: 2148610764 | D18: 2148610764 | E18: 2148610764 | F18: 357141285236 | G18: =IFERROR(IF(C18>0,+C18/B18*100,0),0) -> 0.5980159164 | H18: 0.5980159164 | I18: 0.5980159164
A19: 03-03-01-020- FONDO DE FOMENTO AGROPECUARIO DECRETO LEY 1279 DE 1994 | B19: 428816000 | C19: 0 | D19: 0 | E19: 0 | F19: 428816000 | G19: 0 | H19: 0 | I19: 0
A20: 03-03-01-067- DESARROLLO DE FUNCIONES DE APOYO AL SECTOR AGROPECUARIO EN CIENCIA, TECNOLOGÍA E INNOVACIÓN A CARGO DE CORPOICA A NIVEL NACIONAL. LEY 1731 DE 2014 | B20: 226754750000 | C20: 0 | D20: 0 | E20: 0 | F20: 226754750000 | G20: =IFERROR(IF(C20>0,+C20/B20*100,0),0) -> 0 | H20: 0 | I20: 0
A21: 03-03-01-999- OTRAS TRANSFERENCIAS - DISTRIBUCIÓN PREVIO CONCEPTO DGPPN | B21: 30000000000 | C21: 0 | D21: 0 | E21: 0 | F21: 30000000000 | G21: 0 | H21: 0 | I21: 0
A22: 03-03-04-050- TRANSFERENCIA A LA SOCIEDAD FIDUCIARIA DE DESARROLLO AGROPECUARIO S.A. FIDUAGRARIA - PATRIMONIO AUTÓNOMO DE REMANENTES - INCODER EN LIQUIDACIÓN | B22: 2430000000 | C22: 0 | D22: 0 | E22: 0 | F22: 2430000000 | G22: 0 | H22: 0 | I22: 0
A23: 03-04-02-004- BONOS PENSIONALES (DE PENSIONES) | B23: 1558477000 | C23: 0 | D23: 0 | E23: 0 | F23: 1558477000 | G23: 0 | H23: 0 | I23: 0
A24: 03-04-02-012- INCAPACIDADES Y LICENCIAS DE MATERNIDAD Y PATERNIDAD (NO DE PENSIONES) | B24: 186000000 | C24: 11411805 | D24: 11411805 | E24: 11411805 | F24: 174588195 | G24: 6.135379032 | H24: 6.135379032 | I24: 6.135379032
A25: 03-04-02-080- MESADAS PENSIONALES DEL IDEMA (DE PENSIONES) | B25: 3556452000 | C25: 137198959 | D25: 137198959 | E25: 137198959 | F25: 3419253041 | G25: 3.857748087 | H25: 3.857748087 | I25: 3.857748087
A26: 03-06-01-001- FORTALECIMIENTO DE LAS ASOCIACIONES Y LIGAS DE CONSUMIDORES (LEY 73 DE 1981 Y DECRETO 1320 DE 1982) | B26: 846284000 | C26: 0 | D26: 0 | E26: 0 | F26: 846284000 | G26: 0 | H26: 0 | I26: 0
A27: 03-11-02-001- TRANSFERENCIAS AL SECTOR AGRÍCOLA Y SECTOR INDUSTRIAL PARA APOYO A LA PRODUCCIÓN - ARTÍCULO 1 LEY 16 DE 1990 Y ARTÍCULO 1 LEY 101 DE 1993; LEY 795 DE 2003 | B27: 43526700000 | C27: 0 | D27: 0 | E27: 0 | F27: 43526700000 | G27: 0 | H27: 0 | I27: 0
A28: 03-11-06-004- APERTURA Y/U OPERACIÓN OFICINAS DE LA RED SOCIAL DEL BANCO AGRARIO A NIVEL NACIONAL. LEY 795 DE 2003 | B28: 2330000000 | C28: 0 | D28: 0 | E28: 0 | F28: 2330000000 | G28: 0 | H28: 0 | I28: 0
A29: 03-02-02-- A ORGANIZACIONES INTERNACIONALES | B29: 4103000000 | C29: 0 | D29: 0 | E29: 0 | F29: 4103000000 | G29: 0 | H29: 0 | I29: 0
A30: 03-10--- SENTENCIAS Y CONCILIACIONES | B30: 4500000000 | C30: 0 | D30: 0 | E30: 0 | F30: 4500000000 | G30: 0 | H30: 0 | I30: 0
A31: 03-04-02-009- OBLIGACIONES CONVENCIONALES PENSIONADOS DEL IDEMA (OTRAS PRESTACIONES DE JUBILACIÓN) | B31: 121165000 | C31: 0 | D31: 0 | E31: 0 | F31: 121165000 | G31: 0 | H31: 0 | I31: 0
A32: 03-03-04-071- FONDO PARA EL ACCESO A LOS INSUMOS AGROPECUARIOS -FAIA, LEY 2183 DE 2022 | B32: 20000000000 | C32: 0 | D32: 0 | E32: 0 | F32: 20000000000 | G32: 0 | H32: 0 | I32: 0
A33: 03-03-04-070- FONDO DE FOMENTO PARA LAS MUJERES RURALES -FOMMUR, LEY 731 DE 2002 | B33: 16948252000 | C33: 0 | D33: 0 | E33: 0 | F33: 16948252000 | G33: 0 | H33: 0 | I33: 0
A34: 03-03-01-080- TRANSFERENCIA PARA ENTIDADES EN PROCESO DE LIQUIDACIÓN | B34: 2000000000 | C34: 2000000000 | D34: 2000000000 | E34: 2000000000 | F34: 0 | G34: 100 | H34: 100 | I34: 100
A35: Gastos por Tributos, Multas, Sanciones e Intereses de Mora | B35: 11074000000 | C35: 108574813 | D35: 108574813 | E35: 108574813 | F35: 10965425187 | G35: 0.9804480134 | H35: 0.9804480134 | I35: 0.9804480134
A36: 08-01--- IMPUESTOS | B36: 7737000000 | C36: 108574813 | D36: 108574813 | E36: 108574813 | F36: 7628425187 | G36: 1.403319284 | H36: 1.403319284 | I36: 1.403319284
A37: 08-03--- TASAS Y DERECHOS ADMINISTRATIVOS | B37: 34000000 | C37: 0 | D37: 0 | E37: 0 | F37: 34000000 | G37: 0 | H37: 0 | I37: 0
A38: 08-04-01-- CUOTA DE FISCALIZACIÓN Y AUDITAJE | B38: 3303000000 | C38: 0 | D38: 0 | E38: 0 | F38: 3303000000 | G38: 0 | H38: 0 | I38: 0
A39: Inversión | B39: 1055872680864 | C39: 33834456922 | D39: 1378348366 | E39: 1378348366 | F39: 1022038223942 | G39: 3.204406889 | H39: 0.1305411524 | I39: 0.1305411524
A40: A-Inversión | B40: 1055872680864 | C40: 33834456922 | D40: 1378348366 | E40: 1378348366 | F40: 1022038223942 | G40: 3.204406889 | H40: 0.1305411524 | I40: 0.1305411524
A41: 1702-1100-19-30101B- 3. DERECHO HUMANO A LA ALIMENTACIÓN / B. PROVEER ACCESO A FACTORES PRODUCTIVOS EN FORMA OPORTUNA Y SIMULTÁNEA | B41: 63102000000 | C41: 0 | D41: 0 | E41: 0 | F41: 63102000000 | G41: 0 | H41: 0 | I41: 0
A42: 1702-1100-20-30101B- 3. DERECHO HUMANO A LA ALIMENTACIÓN / B. PROVEER ACCESO A FACTORES PRODUCTIVOS EN FORMA OPORTUNA Y SIMULTÁNEA | B42: 60000000000 | C42: 56500000 | D42: 0 | E42: 0 | F42: 59943500000 | G42: 0.09416666667 | H42: 0 | I42: 0
A43: 1702-1100-21-30101B- 3. DERECHO HUMANO A LA ALIMENTACIÓN / B. PROVEER ACCESO A FACTORES PRODUCTIVOS EN FORMA OPORTUNA Y SIMULTÁNEA | B43: 100000000000 | C43: 537386375 | D43: 0 | E43: 0 | F43: 99462613625 | G43: 0.537386375 | H43: 0 | I43: 0
A44: 1703-1100-8-30101B- 3. DERECHO HUMANO A LA ALIMENTACIÓN / B. PROVEER ACCESO A FACTORES PRODUCTIVOS EN FORMA OPORTUNA Y SIMULTÁNEA | B44: 480000000000 | C44: 10000000 | D44: 0 | E44: 0 | F44: 479990000000 | G44: 0.002083333333 | H44: 0 | I44: 0
A45: 1708-1100-3-40403A- 4. TRANSFORMACIÓN PRODUCTIVA, INTERNACIONALIZACIÓN Y ACCIÓN CLÍMATICA / A. MODELOS DE PRODUCCIÓN SOSTENIBLE Y REGENERATIVOS EN AGRICULTURA Y GANADERÍA | B45: 56898000000 | C45: 0 | D45: 0 | E45: 0 | F45: 56898000000 | G45: 0 | H45: 0 | I45: 0
A46: 1709-1100-6-30101B- 3. DERECHO HUMANO A LA ALIMENTACIÓN / B. PROVEER ACCESO A FACTORES PRODUCTIVOS EN FORMA OPORTUNA Y SIMULTÁNEA | B46: 130000000000 | C46: 1872522645 | D46: 0 | E46: 0 | F46: 128127477355 | G46: 1.440402035 | H46: 0 | I46: 0
A47: 1799-1100-9-53105B- 5. CONVERGENCIA REGIONAL / B. ENTIDADES PÚBLICAS TERRITORIALES Y NACIONALES FORTALECIDAS | B47: 33157874072 | C47: 24765576371 | D47: 1378348366 | E47: 1378348366 | F47: 8392297701 | G47: 74.68988005 | H47: 4.156926234 | I47: 4.156926234
A48: 1799-1100-16-30206D- 3. DERECHO HUMANO A LA ALIMENTACIÓN / D. MINISTERIO DE AGRICULTURA Y DESARROLLO RURAL COMO RECTOR DEL DISEÑO DE POLÍTICA | B48: 12000000000 | C48: 547100000 | D48: 0 | E48: 0 | F48: 11452900000 | G48: 4.559166667 | H48: 0 | I48: 0
A49: 1799-1100-17-30206D- 3. DERECHO HUMANO A LA ALIMENTACIÓN / D. MINISTERIO DE AGRICULTURA Y DESARROLLO RURAL COMO RECTOR DEL DISEÑO DE POLÍTICA | B49: 41714806792 | C49: 2216418451 | D49: 0 | E49: 0 | F49: 39498388341 | G49: 5.313265532 | H49: 0 | I49: 0
A50: 1701-1100-4-51103F- 5. CONVERGENCIA REGIONAL / F. PROVISIÓN Y MEJORAMIENTO DE VIVIENDA RURAL | B50: 40000000000 | C50: 0 | D50: 0 | E50: 0 | F50: 40000000000 | G50: 0 | H50: 0 | I50: 0
A51: 1708-1100-5-40403A- 4. TRANSFORMACIÓN PRODUCTIVA, INTERNACIONALIZACIÓN Y ACCIÓN CLÍMATICA / A. MODELOS DE PRODUCCIÓN SOSTENIBLE Y REGENERATIVOS EN AGRICULTURA Y GANADERÍA | B51: 15000000000 | C51: 10000000 | D51: 0 | E51: 0 | F51: 14990000000 | G51: 0.06666666667 | H51: 0 | I51: 0
A52: 1799-1100-19-30206D- 3. DERECHO HUMANO A LA ALIMENTACIÓN / D. MINISTERIO DE AGRICULTURA Y DESARROLLO RURAL COMO RECTOR DEL DISEÑO DE POLÍTICA | B52: 14000000000 | C52: 3587619746 | D52: 0 | E52: 0 | F52: 10412380254 | G52: 25.62585533 | H52: 0 | I52: 0
A53: 1799-1100-20-30206D- 3. DERECHO HUMANO A LA ALIMENTACIÓN / D. MINISTERIO DE AGRICULTURA Y DESARROLLO RURAL COMO RECTOR DEL DISEÑO DE POLÍTICA | B53: 10000000000 | C53: 231333334 | D53: 0 | E53: 0 | F53: 9768666666 | G53: 2.31333334 | H53: 0 | I53: 0
A54: 170106 Unidad de Planificación de Tierras Rurales, Adecuación de Tierras y Usos Agropecuarios-UPRA | B54: 55200868224 | C54: 15920910806 | D54: 861299451 | E54: 861299451 | F54: 39279957418 | G54: 28.84177608 | H54: 1.560300551 | I54: 1.560300551
A55: Funcionamiento | B55: 14000585000 | C55: 2698864384 | D55: 861299451 | E55: 861299451 | F55: 11301720616 | G55: 19.27679725 | H55: 6.151881875 | I55: 6.151881875
A56: Gastos de Personal | B56: 10927436000 | C56: 703831912 | D56: 703831912 | E56: 703831912 | F56: 10223604088 | G56: 6.440961192 | H56: 6.440961192 | I56: 6.440961192
A57: 01-01-01-- SALARIO | B57: 7170502000 | C57: 479417283 | D57: 479417283 | E57: 479417283 | F57: 6691084717 | G57: 6.685965404 | H57: 6.685965404 | I57: 6.685965404
A58: 01-01-02-- CONTRIBUCIONES INHERENTES A LA NÓMINA | B58: 2622333000 | C58: 181689405 | D58: 181689405 | E58: 181689405 | F58: 2440643595 | G58: 6.92854054 | H58: 6.92854054 | I58: 6.92854054
A59: 01-01-03-- REMUNERACIONES NO CONSTITUTIVAS DE FACTOR SALARIAL | B59: 1134601000 | C59: 42725224 | D59: 42725224 | E59: 42725224 | F59: 1091875776 | G59: 3.765660704 | H59: 3.765660704 | I59: 3.765660704
A60: Adquisición de Bienes y Servicios | B60: 2919381000 | C60: 1994840477 | D60: 157275544 | E60: 157275544 | F60: 924540523 | G60: 68.33093992 | H60: 5.387290799 | I60: 5.387290799
A61: 02---- ADQUISICIÓN DE BIENES Y SERVICIOS | B61: 2919381000 | C61: 1994840477 | D61: 157275544 | E61: 157275544 | F61: 924540523 | G61: 68.33093992 | H61: 5.387290799 | I61: 5.387290799
A62: Transferencias | B62: 36755000 | C62: 191995 | D62: 191995 | E62: 191995 | F62: 36563005 | G62: 0.5223643042 | H62: 0.5223643042 | I62: 0.5223643042
A63: 03-04-02-012- INCAPACIDADES Y LICENCIAS DE MATERNIDAD Y PATERNIDAD (NO DE PENSIONES) | B63: 36755000 | C63: 191995 | D63: 191995 | E63: 191995 | F63: 36563005 | G63: 0.5223643042 | H63: 0.5223643042 | I63: 0.5223643042
A64: Gastos por Tributos, Multas, Sanciones e Intereses de Mora | B64: 117013000 | C64: 0 | D64: 0 | E64: 0 | F64: 117013000 | G64: 0 | H64: 0 | I64: 0
A65: 08-03--- TASAS Y DERECHOS ADMINISTRATIVOS | B65: 413000 | C65: 0 | D65: 0 | E65: 0 | F65: 413000 | G65: 0 | H65: 0 | I65: 0
A66: 08-04-01-- CUOTA DE FISCALIZACIÓN Y AUDITAJE | B66: 116600000 | C66: 0 | D66: 0 | E66: 0 | F66: 116600000 | G66: 0 | H66: 0 | I66: 0
A67: Inversión | B67: 41200283224 | C67: 13222046422 | D67: 0 | E67: 0 | F67: =+B67-C67 -> 27978236802 | G67: 32.09212507 | H67: 0 | I67: 0
A68: A-Inversión | B68: 41200283224 | C68: 13222046422 | D68: 0 | E68: 0 | F68: 27978236802 | G68: 32.09212507 | H68: 0 | I68: 0
A69: 1704-1100-9-30101A- 3. DERECHO HUMANO A LA ALIMENTACIÓN / A. ORDENAR LA PRODUCCIÓN AGROPECUARIA | B69: 15000000000 | C69: 4018106208 | D69: 0 | E69: 0 | F69: 10981893792 | G69: 26.78737472 | H69: 0 | I69: 0
A70: 1704-1100-10-30206C- 3. DERECHO HUMANO A LA ALIMENTACIÓN / C. PRODUCCIÓN DE INFORMACIÓN PARA MEJORAR LA TOMA DE DECISIONES | B70: 8000000000 | C70: 1680250000 | D70: 0 | E70: 0 | F70: 6319750000 | G70: =IFERROR(IF(C70>0,+C70/B70*100,0),0) -> 21.003125 | H70: =IFERROR(IF(D70>0,+D70/B70*100,0),0) -> 0 | I70: =IFERROR(IF(E70>0,+E70/B70*100,0),0) -> 0
A71: 1704-1100-11-30206C- 3. DERECHO HUMANO A LA ALIMENTACIÓN / C. PRODUCCIÓN DE INFORMACIÓN PARA MEJORAR LA TOMA DE DECISIONES | B71: 3000000000 | C71: 1628475000 | D71: 0 | E71: 0 | F71: 1371525000 | G71: 54.2825 | H71: 0 | I71: 0
A72: 1799-1100-3-53105B- 5. CONVERGENCIA REGIONAL / B. ENTIDADES PÚBLICAS TERRITORIALES Y NACIONALES FORTALECIDAS | B72: 12200283224 | C72: 5419152714 | D72: 0 | E72: 0 | F72: 6781130510 | G72: 44.41825337 | H72: 0 | I72: 0
A73: 1704-1100-11-10303A- 1. ORDENAMIENTO DEL TERRITORIO ALREDEDOR DEL AGUA YJUSTICIA AMBIENTAL / A. ARMONIZACIÓN Y RACIONALIZACIÓN DE LOS INSTRUMENTOS DE ORDENAMIENTO Y PLANIFICACIÓN TERRITORIAL | B73: 3000000000 | C73: 476062500 | D73: 0 | E73: 0 | F73: 2523937500 | G73: 15.86875 | H73: 0 | I73: 0
A74: 170200 Instituto Colombiano Agropecuario (ICA) | B74: 490263615733 | C74: 1.355825744e+11 | D74: 12597536384 | E74: 10701296567 | F74: 3.546810413e+11 | G74: 27.65503497 | H74: 2.569543401 | I74: 2.182763767
A75: Funcionamiento | B75: 219595508000 | C75: 4.911586772e+10 | D75: 11197218066 | E75: 10671413749 | F75: 1.704796403e+11 | G75: 22.3665175 | H75: 5.099019633 | I75: 4.859577432
A76: Gastos de Personal | B76: 141147808000 | C76: 9717732280 | D76: 9717732280 | E76: 9717732280 | F76: 131430075720 | G76: 6.884791495 | H76: 6.884791495 | I76: 6.884791495
A77: 01-01-01-- SALARIO | B77: 91070877000 | C77: 6549042116 | D77: 6549042116 | E77: 6549042116 | F77: 84521834884 | G77: 7.191148622 | H77: 7.191148622 | I77: 7.191148622
A78: 01-01-02-- CONTRIBUCIONES INHERENTES A LA NÓMINA | B78: 34518351000 | C78: 2556938053 | D78: 2556938053 | E78: 2556938053 | F78: 31961412947 | G78: 7.407474514 | H78: 7.407474514 | I78: 7.407474514
A79: 01-01-03-- REMUNERACIONES NO CONSTITUTIVAS DE FACTOR SALARIAL | B79: 13570391000 | C79: 573488353 | D79: 573488353 | E79: 573488353 | F79: 12996902647 | G79: 4.226026745 | H79: 4.226026745 | I79: 4.226026745
A80: 01-02-01-- SALARIO | B80: 1337223000 | C80: 31645358 | D80: 31645358 | E80: 31645358 | F80: 1305577642 | G80: 2.366498183 | H80: 2.366498183 | I80: 2.366498183
A81: 01-02-03-- REMUNERACIONES NO CONSTITUTIVAS DE FACTOR SALARIAL | B81: 19976000 | C81: 0 | D81: 0 | E81: 0 | F81: 19976000 | G81: 0 | H81: 0 | I81: 0
A82: 01-02-02-- CONTRIBUCIONES INHERENTES A LA NÓMINA | B82: 630990000 | C82: 6618400 | D82: 6618400 | E82: 6618400 | F82: 624371600 | G82: 1.048891425 | H82: 1.048891425 | I82: 1.048891425
A83: Adquisición de Bienes y Servicios | B83: 58402409000 | C83: 3.901108392e+10 | D83: 1175200105 | E83: 652949821 | F83: 1.939132508e+10 | G83: 66.79704586 | H83: 2.012245942 | I83: 1.118018644
A84: 02---- ADQUISICIÓN DE BIENES Y SERVICIOS | B84: 58402409000 | C84: 3.901108392e+10 | D84: 1175200105 | E84: 652949821 | F84: 1.939132508e+10 | G84: 66.79704586 | H84: 2.012245942 | I84: 1.118018644
A85: Transferencias | B85: 14672463000 | C85: 387051517 | D85: 304285681 | E85: 300731648 | F85: 14285411483 | G85: 2.637945088 | H85: 2.073855501 | I85: 2.04963303
A86: 03-04-02-001- MESADAS PENSIONALES (DE PENSIONES) | B86: 140372000 | C86: 8600258 | D86: 0 | E86: 0 | F86: 131771742 | G86: 6.126761747 | H86: 0 | I86: 0
A87: 03-04-02-002- CUOTAS PARTES PENSIONALES (DE PENSIONES) | B87: 36670000 | C87: 0 | D87: 0 | E87: 0 | F87: 36670000 | G87: 0 | H87: 0 | I87: 0
A88: 03-04-02-022- PROGRAMAS DE VIVIENDA Y OTROS (NO DE PENSIONES) | B88: 2441421000 | C88: 234936545 | D88: 234936545 | E88: 234936545 | F88: 2206484455 | G88: 9.622942745 | H88: 9.622942745 | I88: 9.622942745
A89: 03-02-02-- A ORGANIZACIONES INTERNACIONALES | B89: 1000000000 | C89: 0 | D89: 0 | E89: 0 | F89: 1000000000 | G89: 0 | H89: 0 | I89: 0
A90: 03-10--- SENTENCIAS Y CONCILIACIONES | B90: 9054000000 | C90: 0 | D90: 0 | E90: 0 | F90: 9054000000 | G90: 0 | H90: 0 | I90: 0
A91: 03-03-01-085- FONDO NACIONAL DE EMERGENCIAS SANITARIAS Y FITOSANITARIAS DEL INSTITUTO COLOMBIANO AGROPECUARIO - ICA | B91: 2000000000 | C91: 143514714 | D91: 69349136 | E91: 65795103 | F91: 1856485286 | G91: 7.1757357 | H91: 3.4674568 | I91: 3.28975515
A92: Adquisición de Activos Financieros | B92: 700000000 | C92: 0 | D92: 0 | E92: 0 | F92: 700000000 | G92: 0 | H92: 0 | I92: 0
A93: 06-01-04-011- PRÉSTAMOS DE CONSUMO | B93: 700000000 | C93: 0 | D93: 0 | E93: 0 | F93: 700000000 | G93: 0 | H93: 0 | I93: 0
A94: Gastos por Tributos, Multas, Sanciones e Intereses de Mora | B94: 4672828000 | C94: 0 | D94: 0 | E94: 0 | F94: 4672828000 | G94: 0 | H94: 0 | I94: 0
A95: 08-01--- IMPUESTOS | B95: 3572828000 | C95: 0 | D95: 0 | E95: 0 | F95: 3572828000 | G95: 0 | H95: 0 | I95: 0
A96: 08-04-01-- CUOTA DE FISCALIZACIÓN Y AUDITAJE | B96: 1100000000 | C96: 0 | D96: 0 | E96: 0 | F96: 1100000000 | G96: 0 | H96: 0 | I96: 0
A97: Inversión | B97: 270668107733 | C97: 86466706668 | D97: 1400318318 | E97: 29882818 | F97: 184201401065 | G97: 31.9456575 | H97: 0.51735623 | I97: 0.01104039122
A98: A-Inversión | B98: 270668107733 | C98: 86466706668 | D98: 1400318318 | E98: 29882818 | F98: 184201401065 | G98: 31.9456575 | H98: 0.51735623 | I98: 0.01104039122
A99: 1799-1100-3-53105B- 5. CONVERGENCIA REGIONAL / B. ENTIDADES PÚBLICAS TERRITORIALES Y NACIONALES FORTALECIDAS | B99: 68133621547 | C99: 13076479882 | D99: 416752905 | E99: 0 | F99: 55057141665 | G99: 19.19240396 | H99: 0.6116699737 | I99: 0
A100: 1707-1100-6-30204A- 3. DERECHO HUMANO A LA ALIMENTACIÓN / A. POLÍTICA DE INOCUIDAD DE LOS ALIMENTOS PARA EL PAÍS | B100: 101267243093 | C100: 33695808368 | D100: 429675459 | E100: 23310857 | F100: 67571434725 | G100: 33.27414408 | H100: 0.4242985647 | I100: 0.02301914843
A101: 1707-1100-7-30204A- 3. DERECHO HUMANO A LA ALIMENTACIÓN / A. POLÍTICA DE INOCUIDAD DE LOS ALIMENTOS PARA EL PAÍS | B101: 101267243093 | C101: 39694418418 | D101: 553889954 | E101: 6571961 | F101: 61572824675 | G101: 39.19768842 | H101: 0.5469586582 | I101: 0.006489720466
A102: 171500 Autoridad Nacional de Acuicultura y Pesca - AUNAP | B102: 97937013996 | C102: 6661436092 | D102: 1052221591 | E102: 947822046 | F102: 9.12755779e+10 | G102: 6.801755353 | H102: 1.074386024 | I102: 0.9677873639
A103: Funcionamiento | B103: 24417000000 | C103: 4312700688 | D103: 1052221591 | E103: 947822046 | F103: 2.010429931e+10 | G103: 17.66269684 | H103: 4.309381132 | I103: 3.881812041
A104: Gastos de Personal | B104: 15487800000 | C104: 895286549 | D104: 895286549 | E104: 895286549 | F104: 14592513451 | G104: 5.780592137 | H104: 5.780592137 | I104: 5.780592137
A105: 01-01-01-- SALARIO | B105: 10359806000 | C105: 621578615 | D105: 621578615 | E105: 621578615 | F105: 9738227385 | G105: 5.999905935 | H105: 5.999905935 | I105: 5.999905935
A106: 01-01-02-- CONTRIBUCIONES INHERENTES A LA NÓMINA | B106: 3785163000 | C106: 244365913 | D106: 244365913 | E106: 244365913 | F106: 3540797087 | G106: 6.455888769 | H106: 6.455888769 | I106: 6.455888769
A107: 01-01-03-- REMUNERACIONES NO CONSTITUTIVAS DE FACTOR SALARIAL | B107: 1342831000 | C107: 29342021 | D107: 29342021 | E107: 29342021 | F107: 1313488979 | G107: 2.185086656 | H107: 2.185086656 | I107: 2.185086656
A108: Adquisición de Bienes y Servicios | B108: 8416484000 | C108: 3414831929 | D108: 154352832 | E108: 49953287 | F108: 5001652071 | G108: 40.5731411 | H108: 1.833934835 | I108: 0.5935172811
A109: 02---- ADQUISICIÓN DE BIENES Y SERVICIOS | B109: 8416484000 | C109: 3414831929 | D109: 154352832 | E109: 49953287 | F109: 5001652071 | G109: 40.5731411 | H109: 1.833934835 | I109: 0.5935172811
A110: Transferencias | B110: 214198000 | C110: 2582210 | D110: 2582210 | E110: 2582210 | F110: 211615790 | G110: 1.205524795 | H110: 1.205524795 | I110: 1.205524795
A111: 03-04-02-012- INCAPACIDADES Y LICENCIAS DE MATERNIDAD Y PATERNIDAD (NO DE PENSIONES) | B111: 64198000 | C111: 2582210 | D111: 2582210 | E111: 2582210 | F111: 61615790 | G111: 4.02225926 | H111: 4.02225926 | I111: 4.02225926
A112: 03-10--- SENTENCIAS Y CONCILIACIONES | B112: 150000000 | C112: 0 | D112: 0 | E112: 0 | F112: 150000000 | G112: 0 | H112: 0 | I112: 0
A113: Gastos por Tributos, Multas, Sanciones e Intereses de Mora | B113: 298518000 | C113: 0 | D113: 0 | E113: 0 | F113: 298518000 | G113: 0 | H113: 0 | I113: 0
A114: 08-01--- IMPUESTOS | B114: 61000000 | C114: 0 | D114: 0 | E114: 0 | F114: 61000000 | G114: 0 | H114: 0 | I114: 0
A115: 08-03--- TASAS Y DERECHOS ADMINISTRATIVOS | B115: 4518000 | C115: 0 | D115: 0 | E115: 0 | F115: 4518000 | G115: 0 | H115: 0 | I115: 0
A116: 08-04-01-- CUOTA DE FISCALIZACIÓN Y AUDITAJE | B116: 233000000 | C116: 0 | D116: 0 | E116: 0 | F116: 233000000 | G116: 0 | H116: 0 | I116: 0
A117: Inversión | B117: 73520013996 | C117: 2348735404 | D117: 0 | E117: 0 | F117: 71171278592 | G117: 3.194688461 | H117: 0 | I117: 0
A118: A-Inversión | B118: 73520013996 | C118: 2348735404 | D118: 0 | E118: 0 | F118: 71171278592 | G118: 3.194688461 | H118: 0 | I118: 0
A119: 1799-1100-3-53105B- 5. CONVERGENCIA REGIONAL / B. ENTIDADES PÚBLICAS TERRITORIALES Y NACIONALES FORTALECIDAS | B119: 4483717900 | C119: 1817700000 | D119: 0 | E119: 0 | F119: 2666017900 | G119: 40.54001702 | H119: 0 | I119: 0
A120: 1707-1100-6-30101B- 3. DERECHO HUMANO A LA ALIMENTACIÓN / B. PROVEER ACCESO A FACTORES PRODUCTIVOS EN FORMA OPORTUNA Y SIMULTÁNEA | B120: 3466308700 | C120: 0 | D120: 0 | E120: 0 | F120: 3466308700 | G120: 0 | H120: 0 | I120: 0
A121: 1707-1100-7-30101B- 3. DERECHO HUMANO A LA ALIMENTACIÓN / B. PROVEER ACCESO A FACTORES PRODUCTIVOS EN FORMA OPORTUNA Y SIMULTÁNEA | B121: 54383838596 | C121: 461735404 | D121: 0 | E121: 0 | F121: 53922103192 | G121: 0.8490305501 | H121: 0 | I121: 0
A122: 1708-1100-7-30101B- 3. DERECHO HUMANO A LA ALIMENTACIÓN / B. PROVEER ACCESO A FACTORES PRODUCTIVOS EN FORMA OPORTUNA Y SIMULTÁNEA | B122: 4266341700 | C122: 0 | D122: 0 | E122: 0 | F122: 4266341700 | G122: 0 | H122: 0 | I122: 0
A123: 1708-1100-6-30206C- 3. DERECHO HUMANO A LA ALIMENTACIÓN / C. PRODUCCIÓN DE INFORMACIÓN PARA MEJORAR LA TOMA DE DECISIONES - [PREVIO CONCEPTO DNP] | B123: 6919807100 | C123: 69300000 | D123: 0 | E123: 0 | F123: 6850507100 | G123: 1.001473003 | H123: 0 | I123: 0
A124: 171600 UAE Gestión de Restitución de Tierras Despojadas | B124: 536029566664 | C124: 1.383104495e+11 | D124: 6334849219 | E124: 6316116288 | F124: 3.977191172e+11 | G124: 25.80276501 | H124: 1.181809664 | I124: 1.178314907
A125: Funcionamiento | B125: 80608731000 | C125: 1.352229526e+10 | D125: 4259849219 | E125: 4241116288 | F125: 6.708643574e+10 | G125: 16.77522409 | H125: 5.284600273 | I125: 5.261360941
A126: Gastos de Personal | B126: 57297360000 | C126: 3986652686 | D126: 3986652686 | E126: 3986652686 | F126: 53310707314 | G126: 6.957829621 | H126: 6.957829621 | I126: 6.957829621
A127: 01-01-01-- SALARIO | B127: 38347846000 | C127: 2417950916 | D127: 2417950916 | E127: 2417950916 | F127: 35929895084 | G127: 6.305310906 | H127: 6.305310906 | I127: 6.305310906
A128: 01-01-02-- CONTRIBUCIONES INHERENTES A LA NÓMINA | B128: 13860077000 | C128: 1467258939 | D128: 1467258939 | E128: 1467258939 | F128: =+B128-C128 -> 12392818061 | G128: 10.58622502 | H128: 10.58622502 | I128: 10.58622502
A129: 01-01-03-- REMUNERACIONES NO CONSTITUTIVAS DE FACTOR SALARIAL | B129: 5089437000 | C129: 101442831 | D129: 101442831 | E129: 101442831 | F129: 4987994169 | G129: 1.993203394 | H129: 1.993203394 | I129: 1.993203394
A130: Adquisición de Bienes y Servicios | B130: 21891696000 | C130: 9498278691 | D130: 235832651.7 | E130: 217099720.7 | F130: 1.239341731e+10 | G130: 43.3875872 | H130: 1.077269901 | I130: 0.9916989563
A131: 02---- ADQUISICIÓN DE BIENES Y SERVICIOS | B131: 21891696000 | C131: 9498278691 | D131: 235832651.7 | E131: 217099720.7 | F131: 1.239341731e+10 | G131: 43.3875872 | H131: 1.077269901 | I131: 0.9916989563
A132: Transferencias | B132: 591000000 | C132: 37363881 | D132: 37363881 | E132: 37363881 | F132: 553636119 | G132: 6.322145685 | H132: 6.322145685 | I132: 6.322145685
A133: 03-04-02-012- INCAPACIDADES Y LICENCIAS DE MATERNIDAD Y PATERNIDAD (NO DE PENSIONES) | B133: 195000000 | C133: 37363881 | D133: 37363881 | E133: 37363881 | F133: 157636119 | G133: 19.16096462 | H133: 19.16096462 | I133: 19.16096462
A134: 03-10--- SENTENCIAS Y CONCILIACIONES | B134: 396000000 | C134: 0 | D134: 0 | E134: 0 | F134: 396000000 | G134: =IFERROR(IF(C134>0,+C134/B134*100,0),0) -> 0 | H134: =IFERROR(IF(D134>0,+D134/B134*100,0),0) -> 0 | I134: =IFERROR(IF(E134>0,+E134/B134*100,0),0) -> 0
A135: Gastos por Tributos, Multas, Sanciones e Intereses de Mora | B135: 828675000 | C135: 0 | D135: 0 | E135: 0 | F135: 828675000 | G135: 0 | H135: 0 | I135: 0
A136: 08-01--- IMPUESTOS | B136: 10300000 | C136: 0 | D136: 0 | E136: 0 | F136: 10300000 | G136: 0 | H136: 0 | I136: 0
A137: 08-04-01-- CUOTA DE FISCALIZACIÓN Y AUDITAJE | B137: 818375000 | C137: 0 | D137: 0 | E137: 0 | F137: 818375000 | G137: 0 | H137: 0 | I137: 0
A138: Inversión | B138: 455420835664 | C138: 1.247881542e+11 | D138: 2075000000 | E138: 2075000000 | F138: 3.306326815e+11 | G138: 27.40062475 | H138: 0.4556225446 | I138: 0.4556225446
A139: A-Inversión | B139: 455420835664 | C139: 1.247881542e+11 | D139: 2075000000 | E139: 2075000000 | F139: 3.306326815e+11 | G139: 27.40062475 | H139: 0.4556225446 | I139: 0.4556225446
A140: 1705-1100-6-10106B- 1. ORDENAMIENTO DEL TERRITORIO ALREDEDOR DEL AGUA Y JUSTICIA AMBIENTAL / B. COORDINACIÓN INSTITUCIONAL PARA OPTIMIZAR LA FORMALIZACIÓN | B140: 165972546289 | C140: 2.264782268e+10 | D140: 1075424704 | E140: 1075424704 | F140: 1.433247236e+11 | G140: 13.64552342 | H140: 0.647953368 | I140: 0.647953368
A141: 1705-1100-7-10106A- 1. ORDENAMIENTO DEL TERRITORIO ALREDEDOR DEL AGUA Y JUSTICIA AMBIENTAL / A. ACCESO Y FORMALIZACIÓN DE LA PROPIEDAD | B141: 548400710 | C141: 0 | D141: 0 | E141: 0 | F141: 548400710 | G141: 0 | H141: 0 | I141: 0
A142: 1705-1100-8-10106A- 1. ORDENAMIENTO DEL TERRITORIO ALREDEDOR DEL AGUA Y JUSTICIA AMBIENTAL / A. ACCESO Y FORMALIZACIÓN DE LA PROPIEDAD | B142: 132208667815 | C142: 12180199126 | D142: 144941702.4 | E142: 144941702.4 | F142: 120028468689 | G142: 9.212859737 | H142: 0.1096310134 | I142: 0.1096310134
A143: 1705-1100-9-10106A- 1. ORDENAMIENTO DEL TERRITORIO ALREDEDOR DEL AGUA Y JUSTICIA AMBIENTAL / A. ACCESO Y FORMALIZACIÓN DE LA PROPIEDAD | B143: 115908898130 | C143: 6.262234597e+10 | D143: 182917300 | E143: 182917300 | F143: 5.328655216e+10 | G143: 54.02721187 | H143: 0.1578112664 | I143: 0.1578112664
A144: 1799-1100-1-10106A- 1. ORDENAMIENTO DEL TERRITORIO ALREDEDOR DEL AGUA Y JUSTICIA AMBIENTAL / A. ACCESO Y FORMALIZACIÓN DE LA PROPIEDAD | B144: 40782322720 | C144: 2.733778642e+10 | D144: 671716294 | E144: 671716294 | F144: 1.34445363e+10 | G144: 67.03342183 | H144: 1.647077089 | I144: 1.647077089
A145: 171700 Agencia Nacional de Tierras - ANT | B145: 1653183524174 | C145: 1.355388251e+11 | D145: 2663383091 | E145: 2607194734 | F145: 1.517644699e+12 | G145: 8.198655691 | H145: 0.1611063171 | I145: 0.1577075198
A146: Funcionamiento | B146: 82539448000 | C146: 1.44931176e+10 | D146: 2663383091 | E146: 2607194734 | F146: 6.80463304e+10 | G146: 17.55901929 | H146: 3.226800221 | I146: 3.158725673
A147: Gastos de Personal | B147: 36986271000 | C147: 2286817152 | D147: 2259906855 | E147: 2259906855 | F147: 34699453848 | G147: 6.18288108 | H147: 6.110123551 | I147: 6.110123551
A148: 01-01-01-- SALARIO | B148: 24671812000 | C148: 1470863885 | D148: 1454437550 | E148: 1454437550 | F148: 23200948115 | G148: 5.961718114 | H148: 5.895138752 | I148: 5.895138752
A149: 01-01-02-- CONTRIBUCIONES INHERENTES A LA NÓMINA | B149: 9015066000 | C149: 619393537 | D149: 619393537 | E149: 619393537 | F149: 8395672463 | G149: 6.870648945 | H149: 6.870648945 | I149: 6.870648945
A150: 01-01-03-- REMUNERACIONES NO CONSTITUTIVAS DE FACTOR SALARIAL | B150: 3299393000 | C150: 196559730 | D150: 186075768 | E150: 186075768 | F150: 3102833270 | G150: 5.957451265 | H150: 5.639696999 | I150: 5.639696999
A151: Adquisición de Bienes y Servicios | B151: 38496161000 | C151: 1.219280077e+10 | D151: 389976564.8 | E151: 333788208 | F151: 2.630336023e+10 | G151: 31.67277063 | H151: 1.013027156 | I151: 0.8670688177
A152: 02---- ADQUISICIÓN DE BIENES Y SERVICIOS | B152: 38496161000 | C152: 1.219280077e+10 | D152: 389976564.8 | E152: 333788208 | F152: 2.630336023e+10 | G152: 31.67277063 | H152: 1.013027156 | I152: 0.8670688177
A153: Transferencias | B153: 4215672000 | C153: 13499671 | D153: 13499671 | E153: 13499671 | F153: 4202172329 | G153: 0.3202258383 | H153: 0.3202258383 | I153: 0.3202258383
A154: 03-04-02-012- INCAPACIDADES Y LICENCIAS DE MATERNIDAD Y PATERNIDAD (NO DE PENSIONES) | B154: 143556000 | C154: 13499671 | D154: 13499671 | E154: 13499671 | F154: 130056329 | G154: 9.403766474 | H154: 9.403766474 | I154: 9.403766474
A155: 03-10--- SENTENCIAS Y CONCILIACIONES | B155: 4072116000 | C155: 0 | D155: 0 | E155: 0 | F155: 4072116000 | G155: 0 | H155: 0 | I155: 0
A156: Gastos por Tributos, Multas, Sanciones e Intereses de Mora | B156: 2841344000 | C156: 0 | D156: 0 | E156: 0 | F156: 2841344000 | G156: 0 | H156: 0 | I156: 0
A157: 08-01--- IMPUESTOS | B157: 200344000 | C157: 0 | D157: 0 | E157: 0 | F157: 200344000 | G157: 0 | H157: 0 | I157: 0
A158: 08-04-01-- CUOTA DE FISCALIZACIÓN Y AUDITAJE | B158: 2641000000 | C158: 0 | D158: 0 | E158: 0 | F158: 2641000000 | G158: 0 | H158: 0 | I158: 0
A159: Inversión | B159: 1570644076174 | C159: 121045707493 | D159: 0 | E159: 0 | F159: 1449598368681 | G159: 7.706756058 | H159: 0 | I159: 0
A160: A-Inversión | B160: 1570644076174 | C160: 121045707493 | D160: 0 | E160: 0 | F160: 1449598368681 | G160: 7.706756058 | H160: 0 | I160: 0
A161: 1799-1100-9-53105B- 5. CONVERGENCIA REGIONAL / B. ENTIDADES PÚBLICAS TERRITORIALES Y NACIONALES FORTALECIDAS | B161: 13297004342 | C161: 1450440502 | D161: 0 | E161: 0 | F161: 11846563840 | G161: 10.90802458 | H161: 0 | I161: 0
A162: 1704-1100-19-10106A- 1. ORDENAMIENTO DEL TERRITORIO ALREDEDOR DEL AGUA Y JUSTICIA AMBIENTAL / A. ACCESO Y FORMALIZACIÓN DE LA PROPIEDAD | B162: 234474550204 | C162: 2671832602 | D162: 0 | E162: 0 | F162: 231802717602 | G162: 1.139497911 | H162: 0 | I162: 0
A163: 1704-1100-20-10106A- 1. ORDENAMIENTO DEL TERRITORIO ALREDEDOR DEL AGUA Y JUSTICIA AMBIENTAL / A. ACCESO Y FORMALIZACIÓN DE LA PROPIEDAD | B163: 234474550204 | C163: 2451407088 | D163: 0 | E163: 0 | F163: 232023143116 | G163: 1.045489622 | H163: 0 | I163: 0
A164: 1704-1100-21-10106A- 1. ORDENAMIENTO DEL TERRITORIO ALREDEDOR DEL AGUA Y JUSTICIA AMBIENTAL / A. ACCESO Y FORMALIZACIÓN DE LA PROPIEDAD | B164: 21474642609 | C164: 4913129752 | D164: 0 | E164: 0 | F164: 16561512857 | G164: 22.8787498 | H164: 0 | I164: 0
A165: 1704-1100-21-53105B- 5. CONVERGENCIA REGIONAL / B. ENTIDADES PÚBLICAS TERRITORIALES Y NACIONALES FORTALECIDAS | B165: 22880803075 | C165: 0 | D165: 0 | E165: 0 | F165: 22880803075 | G165: 0 | H165: 0 | I165: 0
A166: 1704-1100-22-10106A- 1. ORDENAMIENTO DEL TERRITORIO ALREDEDOR DEL AGUA Y JUSTICIA AMBIENTAL / A. ACCESO Y FORMALIZACIÓN DE LA PROPIEDAD | B166: 80504875079 | C166: 12816226346 | D166: 0 | E166: 0 | F166: 67688648733 | G166: 15.91981397 | H166: 0 | I166: 0
A167: 1704-1100-23-10106A- 1. ORDENAMIENTO DEL TERRITORIO ALREDEDOR DEL AGUA Y JUSTICIA AMBIENTAL / A. ACCESO Y FORMALIZACIÓN DE LA PROPIEDAD | B167: 89207995636 | C167: 22429396343 | D167: 0 | E167: 0 | F167: 66778599293 | G167: 25.14280943 | H167: 0 | I167: 0
A168: 1704-1100-25-10106A- 1. ORDENAMIENTO DEL TERRITORIO ALREDEDOR DEL AGUA Y JUSTICIA AMBIENTAL / A. ACCESO Y FORMALIZACIÓN DE LA PROPIEDAD | B168: 844912995955 | C168: 62109383979 | D168: 0 | E168: 0 | F168: 782803611976 | G168: 7.350979838 | H168: 0 | I168: 0
A169: 1799-1100-10-53105B- 5. CONVERGENCIA REGIONAL / B. ENTIDADES PÚBLICAS TERRITORIALES Y NACIONALES FORTALECIDAS | B169: 29416659070 | C169: 12203890881 | D169: 0 | E169: 0 | F169: 17212768189 | G169: 41.48632532 | H169: 0 | I169: 0
A170: 171800 Agencia de Desarrollo Rural - ADR | B170: 714200198345 | C170: 2.588596992e+10 | D170: 2766392191 | E170: 2766392191 | F170: 6.883142284e+11 | G170: 3.624469718 | H170: 0.3873412801 | I170: 0.3873412801
A171: Funcionamiento | B171: 57526196000 | C171: 1.220625161e+10 | D171: 2736393425 | E171: 2736393425 | F171: 4.531994439e+10 | G171: 21.21859685 | H171: 4.756777981 | I171: 4.756777981
A172: Gastos de Personal | B172: 21987041000 | C172: 1118445249 | D172: 1118445249 | E172: 1118445249 | F172: 20868595751 | G172: 5.08683842 | H172: 5.08683842 | I172: 5.08683842
A173: 01-01-01-- SALARIO | B173: 15110970000 | C173: 694712289 | D173: 694712289 | E173: 694712289 | F173: 14416257711 | G173: 4.597403668 | H173: 4.597403668 | I173: 4.597403668
A174: 01-01-02-- CONTRIBUCIONES INHERENTES A LA NÓMINA | B174: 1199287000 | C174: 296034703 | D174: 296034703 | E174: 296034703 | F174: 903252297 | G174: 24.68422513 | H174: 24.68422513 | I174: 24.68422513
A175: 01-01-03-- REMUNERACIONES NO CONSTITUTIVAS DE FACTOR SALARIAL | B175: 5676784000 | C175: 127698257 | D175: 127698257 | E175: 127698257 | F175: 5549085743 | G175: 2.249482401 | H175: 2.249482401 | I175: 2.249482401
A176: Adquisición de Bienes y Servicios | B176: 29292596000 | C176: 9986102185 | D176: 516243999.7 | E176: 516243999.7 | F176: 1.930649381e+10 | G176: 34.09087465 | H176: 1.762370258 | I176: 1.762370258
A177: 02---- ADQUISICIÓN DE BIENES Y SERVICIOS | B177: 29292596000 | C177: 9986102185 | D177: 516243999.7 | E177: 516243999.7 | F177: 1.930649381e+10 | G177: 34.09087465 | H177: 1.762370258 | I177: 1.762370258
A178: Transferencias | B178: 3996559000 | C178: 3447774 | D178: 3447774 | E178: 3447774 | F178: 3993111226 | G178: 0.08626856253 | H178: 0.08626856253 | I178: 0.08626856253
A179: 03-03-01-999- OTRAS TRANSFERENCIAS - DISTRIBUCIÓN PREVIO CONCEPTO DGPPN | B179: 261798000 | C179: 0 | D179: 0 | E179: 0 | F179: 261798000 | G179: 0 | H179: 0 | I179: 0
A180: 03-04-02-012- INCAPACIDADES Y LICENCIAS DE MATERNIDAD Y PATERNIDAD (NO DE PENSIONES) | B180: 145545000 | C180: 3447774 | D180: 3447774 | E180: 3447774 | F180: 142097226 | G180: 2.368871483 | H180: 2.368871483 | I180: 2.368871483
A181: 03-10--- SENTENCIAS Y CONCILIACIONES | B181: 3589216000 | C181: 0 | D181: 0 | E181: 0 | F181: 3589216000 | G181: 0 | H181: 0 | I181: 0
A182: Gastos por Tributos, Multas, Sanciones e Intereses de Mora | B182: 2250000000 | C182: 1098256402 | D182: 1098256402 | E182: 1098256402 | F182: 1151743598 | G182: 48.81139564 | H182: 48.81139564 | I182: 48.81139564
A183: 08-01--- IMPUESTOS | B183: 250000000 | C183: 30468604 | D183: 30468604 | E183: 30468604 | F183: 219531396 | G183: 12.1874416 | H183: 12.1874416 | I183: 12.1874416
A184: 08-04-01-- CUOTA DE FISCALIZACIÓN Y AUDITAJE | B184: 2000000000 | C184: 1067787798 | D184: 1067787798 | E184: 1067787798 | F184: 932212202 | G184: 53.3893899 | H184: 53.3893899 | I184: 53.3893899
A185: Inversión | B185: 656674002345 | C185: 13679718305 | D185: 29998766 | E185: 29998766 | F185: 642994284040 | G185: 2.083182562 | H185: 0.004568288967 | I185: 0.004568288967
A186: A-Inversión | B186: 656674002345 | C186: 13679718305 | D186: 29998766 | E186: 29998766 | F186: 642994284040 | G186: 2.083182562 | H186: 0.004568288967 | I186: 0.004568288967
A187: 1709-1100-6-30101B- 3. DERECHO HUMANO A LA ALIMENTACIÓN / B. PROVEER ACCESO A FACTORES PRODUCTIVOS EN FORMA OPORTUNA Y SIMULTÁNEA | B187: 36908650863 | C187: 1603670675 | D187: 3849853 | E187: 3849853 | F187: 35304980188 | G187: 4.344972351 | H187: 0.01043076057 | I187: 0.01043076057
A188: 1702-1100-14-30101B- 3. DERECHO HUMANO A LA ALIMENTACIÓN / B. PROVEER ACCESO A FACTORES PRODUCTIVOS EN FORMA OPORTUNA Y SIMULTÁNEA | B188: 347401848886 | C188: 5866964645 | D188: 26148913 | E188: 26148913 | F188: 3.415348842e+11 | G188: 1.688812153 | H188: 0.007526993044 | I188: 0.007526993044
A189: 1708-1100-5-30101C- 3. DERECHO HUMANO A LA ALIMENTACIÓN / C. SISTEMAS TERRITORIALES DE INNOVACIÓN, FORTALECIMIENTO DEL SISTEMA NACIONAL DE INNOVACIÓN AGROPECUARIA (SNIA) Y MISIÓN DE INVESTIGACIÓN E INNOVACIÓN | B189: 44396720780 | C189: 963495331 | D189: 0 | E189: 0 | F189: 43433225449 | G189: 2.170194812 | H189: 0 | I189: 0
A190: 1708-1100-5-30101D- 3. DERECHO HUMANO A LA ALIMENTACIÓN / D. EXTENSIÓN TECNOLÓGICA AGROINDUSTRIA | B190: 34745794650 | C190: 0 | D190: 0 | E190: 0 | F190: =+B190-C190 -> 34745794650 | G190: 0 | H190: 0 | I190: 0
A191: 1709-1100-7-30101B- 3. DERECHO HUMANO A LA ALIMENTACIÓN / B. PROVEER ACCESO A FACTORES PRODUCTIVOS EN FORMA OPORTUNA Y SIMULTÁNEA | B191: 116422783387 | C191: 1902940808 | D191: 0 | E191: 0 | F191: 114519842579 | G191: 1.634508945 | H191: 0 | I191: 0
A192: 1799-1100-14-53105B- 5. CONVERGENCIA REGIONAL / B. ENTIDADES PÚBLICAS TERRITORIALES Y NACIONALES FORTALECIDAS | B192: 162970947 | C192: 0 | D192: 0 | E192: 0 | F192: 162970947 | G192: 0 | H192: 0 | I192: 0
A193: 1799-1100-15-53105B- 5. CONVERGENCIA REGIONAL / B. ENTIDADES PÚBLICAS TERRITORIALES Y NACIONALES FORTALECIDAS | B193: 6658969478 | C193: 853500000 | D193: 0 | E193: 0 | F193: 5805469478 | G193: 12.81729857 | H193: 0 | I193: 0
A194: 1799-1100-16-53105B- 5. CONVERGENCIA REGIONAL / B. ENTIDADES PÚBLICAS TERRITORIALES Y NACIONALES FORTALECIDAS | B194: 10237078950 | C194: 155816574 | D194: 0 | E194: 0 | F194: 10081262376 | G194: 1.522080417 | H194: 0 | I194: 0
A195: 1702-1100-16-30101B- 3. DERECHO HUMANO A LA ALIMENTACIÓN / B. PROVEER ACCESO A FACTORES PRODUCTIVOS EN FORMA OPORTUNA Y SIMULTÁNEA | B195: 15339184404 | C195: 920364181 | D195: 0 | E195: 0 | F195: 1.441882022e+10 | G195: 6.000085512 | H195: 0 | I195: 0
A196: 1702-1100-17-30201A- 3. DERECHO HUMANO A LA ALIMENTACIÓN / A. DESARROLLO DE REDES AGROLOGÍSTICAS | B196: 44400000000 | C196: 1412966091 | D196: 0 | E196: 0 | F196: 42987033909 | G196: 3.182356061 | H196: 0 | I196: 0
A197: AMBIENTE Y DESARROLLO SOSTENIBLE | B197: 1781308692870 | C197: 2.803802384e+11 | D197: 3.011218251e+10 | E197: 3.004797213e+10 | F197: 1.500928454e+12 | G197: 15.74012632 | H197: 1.690452791 | I197: 1.686848116
A198: 320101 Ministerio de Ambiente y Desarrollo Sostenible | B198: 919481215452 | C198: 1.405481054e+11 | D198: 7756210388 | E198: 7745210833 | F198: 7.7893311e+11 | G198: =IFERROR(IF(C198>0,+C198/B198*100,0),0) -> 15.28558747 | H198: =IFERROR(IF(D198>0,+D198/B198*100,0),0) -> 0.8435420167 | I198: =IFERROR(IF(E198>0,+E198/B198*100,0),0) -> 0.8423457383
A199: Funcionamiento | B199: 247840612000 | C199: 6.665870437e+10 | D199: 7756210388 | E199: 7745210833 | F199: 1.811819076e+11 | G199: 26.89579558 | H199: 3.129515508 | I199: 3.125077351
A200: Gastos de Personal | B200: 56233671000 | C200: 2676561407 | D200: 2676561407 | E200: 2676561407 | F200: 53557109593 | G200: 4.759713103 | H200: 4.759713103 | I200: 4.759713103
... 4622 more rows

Sheet CUA8
A1: CUADRO No. 8
A2: Rezago presupuestal del Presupuesto General de la Nación en 2024
A3: =+'CUA1'!A3:L3 -> Acumulada a Enero 2025
A4: Miles de millones de pesos corrientes
B5: Concepto | C5: Rezago | D5: Pago | E5: Rezago por pagar | F5: Ejecución %
F6: Pago/Rezago
C7: (1) | D7: (2) | E7: (3)=(1-2) | F7: (4)=(2/1)
A8: I. | B8: FUNCIONAMIENTO | C8: 18500.53024 | D8: 5114.861823 | E8: 13385.66842 | F8: 27.64710933
B9: Gastos de Personal | C9: 572.3911492 | D9: 346.3753424 | E9: 226.0158068 | F9: 60.51374884
B10: Adquisición de Bienes y Servicios | C10: 4388.375953 | D10: 1407.774321 | E10: 2980.601632 | F10: 32.07961979
B11: Transferencias | C11: 13195.41358 | D11: 3306.354051 | E11: 9889.059529 | F11: 25.0568429
B12: Gastos de Comercialización y Producción | C12: 320.8273044 | D12: 38.22162331 | E12: 282.6056811 | F12: 11.91345711
B13: Adquisición de Activos Financieros | C13: 5.023257736 | D13: 0.89125 | E13: 4.132007736 | F13: 17.74247006
B14: Disminución de Pasivos | C14: 10.93833312 | D14: 9.774066461 | E14: 1.164266658 | F14: 89.35608703
B15: Gastos por Tributos, Multas, Sanciones e Intereses de Mora | C15: 7.560667585 | D15: 5.471170164 | E15: 2.08949742 | F15: 72.36358566
A16: II. | B16: SERVICIO DE LA DEUDA | C16: 8065.299428 | D16: 3870.457452 | E16: 4194.841976 | F16: 47.98901128
B17: Servicio de la Deuda Pública Externa | C17: 4032.649714 | D17: 1935.228726 | E17: 2097.420988 | F17: 47.98901128
B18: Principal | C18: 1770.995202 | D18: 284.822015 | E18: 1486.173187 | F18: 16.08259664
B19: Intereses | C19: 2245.312495 | D19: 1648.938819 | E19: 596.3736759 | F19: 73.43916817
B20: Comisiones y Otros Gastos | C20: 16.34201683 | D20: 1.467892355 | E20: 14.87412447 | F20: 8.982320671
B21: Servicio de la Deuda Pública Interna | C21: 4032.649714 | D21: 1935.228726 | E21: 2097.420988 | F21: 47.98901128
B22: Principal | C22: 1770.995202 | D22: 284.822015 | E22: 1486.173187 | F22: 16.08259664
B23: Intereses | C23: 2245.312495 | D23: 1648.938819 | E23: 596.3736759 | F23: 73.43916817
B24: Comisiones y Otros Gastos | C24: 16.34201683 | D24: 1.467892355 | E24: 14.87412447 | F24: 8.982320671
B25: Fondo de Contingencias | C25: 0 | D25: 0 | E25: 0 | F25: 0
A26: III. | B26: INVERSIÓN | C26: 37017.8755 | D26: 4443.791418 | E26: 32574.08409 | F26: 12.00444747
A27: IV. | B27: TOTAL (I + II + III) | C27: 63583.70518 | D27: 13429.11069 | E27: 50154.59448 | F27: 21.12036513
A28: V. | B28: TOTAL SIN DEUDA (I + III) | C28: 55518.40575 | D28: 9558.653242 | E28: 45959.75251 | F28: 17.21708884
A29: Fuente: Dirección General del Presupuesto Público Nacional- Subdirección de Análisis y Consolidación Presupuestal

Sheet CUA9
A1: Cuadro No. 9
A2: Reservas presupuestales del PGN de 2024 que se ejecutan en el 2025
A3: Acumulado a Enero
A4: Miles de millones de pesos
B5: Concepto | C5: Reservas Presupuestales | D5: Pago | E5: Reservas por pagar | F5: Ejecución %
C6: presupuestal | F6: Pago/Reservas
C7: (1) | D7: (2) | E7: (3)=(1-2) | F7: (4)=(2/1)
A8: I. | B8: FUNCIONAMIENTO | C8: 17987.98972 | D8: 4796.375332 | E8: 13191.61438 | F8: 26.66432107
B9: Gastos de Personal | C9: 472.9607473 | D9: 249.6681002 | E9: 223.2926472 | F9: 52.78833425
B10: Adquisición de Bienes y Servicios | C10: 4198.728995 | D10: 1247.596048 | E10: 2951.132947 | F10: 29.71365977
B11: Transferencias | C11: 13160.57446 | D11: 3285.021549 | E11: 9875.552914 | F11: 24.96108022
B12: Gastos de Comercialización y Producción | C12: 137.315547 | D12: 2.6984921 | E12: 134.6170549 | F12: 1.965175947
B13: Adquisición de Activos Financieros | C13: 4.658803368 | D13: 0.89125 | E13: 3.767553368 | F13: 19.13044895
B14: Disminución de Pasivos | C14: 10.58143075 | D14: 9.417164088 | E14: 1.164266658 | F14: 88.99707718
B15: Gastos por Tributos, Multas, Sanciones e Intereses de Mora | C15: 3.169729768 | D15: 1.082728479 | E15: 2.08700129 | F15: 34.1583844
A16: II. | B16: SERVICIO DE LA DEUDA | C16: 7777.852095 | D16: 1958.27133 | E16: 5819.580764 | F16: 25.17753368
B17: Servicio de la Deuda Pública Externa | C17: 4032.649714 | D17: 1935.228726 | E17: 2097.420988 | F17: 47.98901128
B18: Principal | C18: 1770.995202 | D18: 284.822015 | E18: 1486.173187 | F18: 16.08259664
B19: Intereses | C19: 2245.312495 | D19: 1648.938819 | E19: 596.3736759 | F19: 73.43916817
B20: Comisiones y Otros Gastos | C20: 16.34201683 | D20: 1.467892355 | E20: 14.87412447 | F20: 8.982320671
B21: Servicio de la Deuda Pública Interna | C21: 3745.202381 | D21: 23.04260418 | E21: 3722.159777 | F21: 0.6152565827
B22: Principal | C22: 3460.391126 | D22: 1.912810341 | E22: 3458.478315 | F22: 0.05527728721
B23: Intereses | C23: 221.4578363 | D23: 0.01063211703 | E23: 221.4472042 | F23: 0.004800966724
B24: Comisiones y Otros Gastos | C24: 63.35341876 | D24: 21.11916173 | E24: 42.23425703 | F24: 33.33547288
A25: III. | B25: INVERSIÓN | C25: 35846.97327 | D25: 3663.350824 | E25: 32183.62245 | F25: 10.21941461
A26: IV. | B26: TOTAL (I + II + III) | C26: 61612.81508 | D26: 10417.99749 | E26: 51194.8176 | F26: 16.90881592
A27: V. | B27: TOTAL SIN DEUDA (I + III) | C27: 53834.96299 | D27: 8459.726156 | E27: 45375.23683 | F27: 15.71418589
A29: Fuente: Dirección General del Presupuesto Público Nacional-Subdirección de Análisis y Consolidación Presupuestal

Sheet CUA10
A1: Cuadro No. 10
A2: Cuentas por pagar del PGN de 2024 que se ejecutan en el 2025
A3: Acumulado a Enero
A4: Miles de millones de pesos corrientes
B5: Concepto | C5: Cuentas por Pagar | D5: Pago | E5: Cuentas sin pagar | F5: Ejecución %
F6: Pago/Cuentas
C7: (1) | D7: (2) | E7: (3)=(1-2) | F7: (4)=(2/1)
A8: I. | B8: FUNCIONAMIENTO | C8: 512.5405279 | D8: 318.4864911 | E8: 194.0540368 | F8: 62.13879172 | H8: 408.4120593 | I8: 406.2075617 | J8: =+H8-C8 -> -104.1284686 | K8: =+I8-D8 -> 87.72107052
B9: Gastos de Personal | C9: 99.43040185 | D9: 96.70724223 | E9: 2.723159625 | F9: 97.26124045 | H9: 33.03304575 | I9: 33.01139416 | J9: =+H9-C9 -> -66.3973561 | K9: -63.69584807
B10: Adquisición de Bienes y Servicios | C10: 189.6469576 | D10: 160.1782724 | E10: 29.46868524 | F10: 84.46129292 | H10: 198.9744317 | I10: 198.9727557 | J10: 9.327474121 | K10: 38.79448329
B11: Transferencias | C11: 34.83911642 | D11: 21.33250125 | E11: 13.50661518 | F11: 61.23146463 | H11: 62.47458135 | I11: 60.39344836 | J11: 27.63546493 | K11: 39.06094711
B12: Gastos de Comercialización y Producción | C12: 183.5117575 | D12: 35.52313121 | E12: 147.9886263 | F12: 19.35741431 | H12: 107.6569445 | I12: 107.6569445 | J12: -75.85481297 | K12: 72.1338133
B13: Adquisición de Activos Financieros | C13: 0.3644543681 | D13: 0 | E13: 0.3644543681 | F13: 0 | H13: 4.3205215 | I13: 4.2205215 | J13: 3.956067132 | K13: 4.2205215
B14: Disminución de Pasivos | C14: 0.3569023729 | D14: 0.3569023729 | E14: 0 | F14: 100 | H14: 1.60507165 | I14: 1.60503464 | J14: 1.248169277 | K14: 1.248132267
B15: Gastos por Tributos, Multas, Sanciones e Intereses de Mora | C15: 4.390937816 | D15: 4.388441686 | E15: 0.00249613055 | F15: 99.94315268 | H15: 0.34746281 | I15: 0.34746281 | J15: -4.043475006 | K15: -4.040978876
A16: II. | B16: SERVICIO DE LA DEUDA | C16: 0 | D16: 0 | E16: 0 | F16: 0 | H16: 6.736498228 | I16: 6.736498228 | J16: 6.736498228 | K16: 6.736498228
B17: Servicio de la Deuda Pública Externa | C17: 0 | D17: 0 | E17: 0 | F17: 0 | H17: 0 | I17: 0 | J17: 0 | K17: 0
B18: Principal | C18: 0 | D18: 0 | E18: 0 | F18: 0 | H18: 0 | I18: 0 | J18: 0 | K18: 0
B19: Intereses | C19: 0 | D19: 0 | E19: 0 | F19: 0 | H19: 0 | I19: 0 | J19: 0 | K19: 0
B20: Comisiones y Otros Gastos | C20: 0 | D20: 0 | E20: 0 | F20: 0 | H20: 0 | I20: 0 | J20: 0 | K20: 0
B21: Servicio de la Deuda Pública Interna | C21: 0 | D21: 0 | E21: 0 | F21: 0 | H21: 6.736498228 | I21: 6.736498228 | J21: 6.736498228 | K21: 6.736498228
B22: Principal | C22: 0 | D22: 0 | E22: 0 | F22: 0 | H22: 0 | I22: 0 | J22: 0 | K22: 0
B23: Intereses | C23: 0 | D23: 0 | E23: 0 | F23: 0 | H23: 0 | I23: 0 | J23: 0 | K23: 0
B24: Comisiones y Otros Gastos | C24: 0 | D24: 0 | E24: 0 | F24: 0 | H24: 0 | I24: 0 | J24: 0 | K24: 0
B25: Fondo de Contingencias | C25: 0 | D25: 0 | E25: 0 | F25: 0 | H25: 6.736498228 | I25: 6.736498228 | J25: 6.736498228 | K25: 6.736498228
A26: III. | B26: INVERSIÓN | C26: 1170.902233 | D26: 780.4405942 | E26: 390.4616383 | F26: 66.65292563 | H26: 621.5026668 | I26: 621.4521532 | J26: -549.3995657 | K26: -158.988441
A27: IV. | B27: TOTAL (I + II + III) | C27: 1683.44276 | D27: 1098.927085 | E27: 584.5156751 | F27: 65.27855364 | H27: 1036.651224 | I27: 1034.396213 | J27: -646.7915361 | K27: -64.53087225
A28: V. | B28: TOTAL SIN DEUDA (I + II) | C28: 1683.44276 | D28: 1098.927085 | E28: 584.5156751 | F28: 65.27855364 | H28: 1029.914726 | I28: 1027.659715 | J28: -653.5280343 | K28: -71.26737048
A29: Fuente: Dirección General del Presupuesto Público Nacional- Subdirección de Análisis y Consolidación Presupuestal
